Workbook

Sheet 환불기준 (2.25 입사자)
A1: 2024-1학기 정규입사자 퇴사 시 환불 기준표 | N1: 1인실
B2: 매지2인실 | C2: 매지3인실 | D2: 세연2인실 | E2: 세연3인실 | F2: 청연3인실 | G2: 세연비트방 | H2: 세연장애인실 | I2: 청연장애인실 | L2: 내용 | O2: 매지1인실 | Q2: 세연장애인실(비장애인) | R2: 청연장애인실(비장애인)
A3: 1박 단가 | B3: 7290 | C3: 4860 | D3: 9890 | E3: 7290 | F3: 9890 | G3: 8880 | H3: 9410 | I3: 12060 | K3: 입사일 | L3: 2024-02-25 | N3: 1박 단가 | O3: 9410 | P3: 12690 | Q3: 14880 | R3: 18660
A4: 입사비 | B4: =B3*118 -> 860220 | C4: =C3*118 -> 573480 | D4: =D3*118 -> 1167020 | E4: 860220 | F4: 1167020 | G4: 1047840 | H4: 1110380 | I4: 1423080 | K4: 퇴사일 | L4: 2024-06-22 | N4: 입사비 | O4: =O3*118 -> 1110380 | P4: =P3*118 -> 1497420 | Q4: =Q3*118 -> 1755840 | R4: =R3*118 -> 2201880
A5: 위약금(기본공제금액) | B5: =B4*20% -> 172044 | C5: =C4*20% -> 114696 | D5: 233404 | E5: 172044 | F5: 233404 | G5: 209568 | H5: 222076 | I5: 284616 | K5: 사용일(박) | L5: =L4-L3 -> 118 | N5: 위약금(기본공제금액) | O5: =O4*20% -> 222076 | P5: =P4*20% -> 299484 | Q5: =Q4*20% -> 351168 | R5: 440376
A6: 위약금(원 단위 절사) | B6: 172040 | C6: 114690 | D6: 233400 | E6: 172040 | F6: 233400 | G6: 209560 | H6: 222070 | I6: 284610 | N6: 위약금(원 단위 절사) | O6: 344080 | P6: 344080 | Q6: 351160 | R6: 440370
A7: 2024-02-25 | B7: =B4-B6 -> 688180 | C7: =C4-C6 -> 458790 | D7: =D4-D6 -> 933620 | E7: 688180 | F7: 933620 | G7: 838280 | H7: 888310 | I7: 1138470 | N7: 2024-02-25 | O7: =O4-O6 -> 766300 | P7: =P4-P6 -> 1153340 | Q7: =Q4-Q6 -> 1404680 | R7: =R4-R6 -> 1761510
A8: 2024-02-26 | B8: =B7-$B$3 -> 680890 | C8: =C7-$C$3 -> 453930 | D8: =D7-$D$3 -> 923730 | E8: =E7-$E$3 -> 680890 | F8: =F7-$F$3 -> 923730 | G8: =G7-$G$3 -> 829400 | H8: =H7-$H$3 -> 878900 | I8: =I7-$I$3 -> 1126410 | N8: 2024-02-26 | O8: =O7-$B$3 -> 759010 | P8: =P7-$B$3 -> 1146050 | Q8: =Q7-$C$3 -> 1399820 | R8: =R7-$D$3 -> 1751620
A9: 2024-02-27 | B9: =B8-$B$3 -> 673600 | C9: =C8-$C$3 -> 449070 | D9: =D8-$D$3 -> 913840 | E9: =E8-$E$3 -> 673600 | F9: =F8-$F$3 -> 913840 | G9: =G8-$G$3 -> 820520 | H9: 869490 | I9: =I8-$I$3 -> 1114350 | N9: 2024-02-27 | O9: =O8-$B$3 -> 751720 | P9: 1138760 | Q9: =Q8-$C$3 -> 1394960 | R9: =R8-$D$3 -> 1741730
A10: 2024-02-28 | B10: 666310 | C10: 444210 | D10: 903950 | E10: 666310 | F10: 903950 | G10: 811640 | H10: 860080 | I10: 1102290 | N10: 2024-02-28 | O10: 744430 | P10: 1131470 | Q10: 1390100 | R10: 1731840
A11: 2024-02-29 | B11: 659020 | C11: 439350 | D11: 894060 | E11: 659020 | F11: 894060 | G11: 802760 | H11: 850670 | I11: 1090230 | N11: 2024-02-29 | O11: 737140 | P11: 1124180 | Q11: 1385240 | R11: 1721950
A12: 2024-03-01 | B12: 651730 | C12: 434490 | D12: 884170 | E12: 651730 | F12: 884170 | G12: 793880 | H12: 841260 | I12: 1078170 | N12: 2024-03-01 | O12: 729850 | P12: 1116890 | Q12: 1380380 | R12: 1712060
A13: 2024-03-02 | B13: 644440 | C13: 429630 | D13: 874280 | E13: 644440 | F13: 874280 | G13: 785000 | H13: 831850 | I13: 1066110 | N13: 2024-03-02 | O13: 722560 | P13: 1109600 | Q13: 1375520 | R13: 1702170
A14: 2024-03-03 | B14: 637150 | C14: 424770 | D14: 864390 | E14: 637150 | F14: 864390 | G14: 776120 | H14: 822440 | I14: 1054050 | N14: 2024-03-03 | O14: 715270 | P14: 1102310 | Q14: 1370660 | R14: 1692280
A15: 2024-03-04 | B15: 629860 | C15: 419910 | D15: 854500 | E15: 629860 | F15: 854500 | G15: 767240 | H15: 813030 | I15: 1041990 | N15: 2024-03-04 | O15: 707980 | P15: 1095020 | Q15: 1365800 | R15: 1682390
A16: 2024-03-05 | B16: 622570 | C16: 415050 | D16: 844610 | E16: 622570 | F16: 844610 | G16: 758360 | H16: 803620 | I16: 1029930 | N16: 2024-03-05 | O16: 700690 | P16: 1087730 | Q16: 1360940 | R16: 1672500
A17: 2024-03-06 | B17: 615280 | C17: 410190 | D17: 834720 | E17: 615280 | F17: 834720 | G17: 749480 | H17: 794210 | I17: 1017870 | N17: 2024-03-06 | O17: 693400 | P17: 1080440 | Q17: 1356080 | R17: 1662610
A18: 2024-03-07 | B18: 607990 | C18: 405330 | D18: 824830 | E18: 607990 | F18: 824830 | G18: 740600 | H18: 784800 | I18: 1005810 | N18: 2024-03-07 | O18: 686110 | P18: 1073150 | Q18: 1351220 | R18: 1652720
A19: 2024-03-08 | B19: 600700 | C19: 400470 | D19: 814940 | E19: 600700 | F19: 814940 | G19: 731720 | H19: 775390 | I19: 993750 | N19: 2024-03-08 | O19: 678820 | P19: 1065860 | Q19: 1346360 | R19: 1642830
A20: 2024-03-09 | B20: 593410 | C20: 395610 | D20: 805050 | E20: 593410 | F20: 805050 | G20: 722840 | H20: 765980 | I20: 981690 | N20: 2024-03-09 | O20: 671530 | P20: 1058570 | Q20: 1341500 | R20: 1632940
A21: 2024-03-10 | B21: 586120 | C21: 390750 | D21: 795160 | E21: 586120 | F21: 795160 | G21: 713960 | H21: 756570 | I21: 969630 | N21: 2024-03-10 | O21: 664240 | P21: 1051280 | Q21: 1336640 | R21: 1623050
A22: 2024-03-11 | B22: 578830 | C22: 385890 | D22: 785270 | E22: 578830 | F22: 785270 | G22: 705080 | H22: 747160 | I22: 957570 | N22: 2024-03-11 | O22: 656950 | P22: 1043990 | Q22: 1331780 | R22: 1613160
A23: 2024-03-12 | B23: 571540 | C23: 381030 | D23: 775380 | E23: 571540 | F23: 775380 | G23: 696200 | H23: 737750 | I23: 945510 | N23: 2024-03-12 | O23: 649660 | P23: 1036700 | Q23: 1326920 | R23: 1603270
A24: 2024-03-13 | B24: 564250 | C24: 376170 | D24: 765490 | E24: 564250 | F24: 765490 | G24: 687320 | H24: 728340 | I24: 933450 | N24: 2024-03-13 | O24: 642370 | P24: 1029410 | Q24: 1322060 | R24: 1593380
A25: 2024-03-14 | B25: 556960 | C25: 371310 | D25: 755600 | E25: 556960 | F25: 755600 | G25: 678440 | H25: 718930 | I25: 921390 | N25: 2024-03-14 | O25: 635080 | P25: 1022120 | Q25: 1317200 | R25: 1583490
A26: 2024-03-15 | B26: 549670 | C26: 366450 | D26: 745710 | E26: 549670 | F26: 745710 | G26: 669560 | H26: 709520 | I26: 909330 | N26: 2024-03-15 | O26: 627790 | P26: 1014830 | Q26: 1312340 | R26: 1573600
A27: 2024-03-16 | B27: 542380 | C27: 361590 | D27: 735820 | E27: 542380 | F27: 735820 | G27: 660680 | H27: 700110 | I27: 897270 | N27: 2024-03-16 | O27: 620500 | P27: 1007540 | Q27: 1307480 | R27: 1563710
A28: 2024-03-17 | B28: 535090 | C28: 356730 | D28: 725930 | E28: 535090 | F28: 725930 | G28: 651800 | H28: 690700 | I28: 885210 | N28: 2024-03-17 | O28: 613210 | P28: 1000250 | Q28: 1302620 | R28: 1553820
A29: 2024-03-18 | B29: 527800 | C29: 351870 | D29: 716040 | E29: 527800 | F29: 716040 | G29: 642920 | H29: 681290 | I29: 873150 | N29: 2024-03-18 | O29: 605920 | P29: 992960 | Q29: 1297760 | R29: 1543930
A30: 2024-03-19 | B30: 520510 | C30: 347010 | D30: 706150 | E30: 520510 | F30: 706150 | G30: 634040 | H30: 671880 | I30: 861090 | N30: 2024-03-19 | O30: 598630 | P30: 985670 | Q30: 1292900 | R30: 1534040
A31: 2024-03-20 | B31: 513220 | C31: 342150 | D31: 696260 | E31: 513220 | F31: 696260 | G31: 625160 | H31: 662470 | I31: 849030 | N31: 2024-03-20 | O31: 591340 | P31: 978380 | Q31: 1288040 | R31: 1524150
A32: 2024-03-21 | B32: 505930 | C32: 337290 | D32: 686370 | E32: 505930 | F32: 686370 | G32: 616280 | H32: 653060 | I32: 836970 | N32: 2024-03-21 | O32: 584050 | P32: 971090 | Q32: 1283180 | R32: 1514260
A33: 2024-03-22 | B33: 498640 | C33: 332430 | D33: 676480 | E33: 498640 | F33: 676480 | G33: 607400 | H33: 643650 | I33: 824910 | N33: 2024-03-22 | O33: 576760 | P33: 963800 | Q33: 1278320 | R33: 1504370
A34: 2024-03-23 | B34: 491350 | C34: 327570 | D34: 666590 | E34: 491350 | F34: 666590 | G34: 598520 | H34: 634240 | I34: 812850 | N34: 2024-03-23 | O34: 569470 | P34: 956510 | Q34: 1273460 | R34: 1494480
A35: 2024-03-24 | B35: 484060 | C35: 322710 | D35: 656700 | E35: 484060 | F35: 656700 | G35: 589640 | H35: 624830 | I35: 800790 | N35: 2024-03-24 | O35: 562180 | P35: 949220 | Q35: 1268600 | R35: 1484590
A36: 2024-03-25 | B36: 476770 | C36: 317850 | D36: 646810 | E36: 476770 | F36: 646810 | G36: 580760 | H36: 615420 | I36: 788730 | N36: 2024-03-25 | O36: 554890 | P36: 941930 | Q36: 1263740 | R36: 1474700
A37: 2024-03-26 | B37: 469480 | C37: 312990 | D37: 636920 | E37: 469480 | F37: 636920 | G37: 571880 | H37: 606010 | I37: 776670 | N37: 2024-03-26 | O37: 547600 | P37: 934640 | Q37: 1258880 | R37: 1464810
A38: 2024-03-27 | B38: 462190 | C38: 308130 | D38: 627030 | E38: 462190 | F38: 627030 | G38: 563000 | H38: 596600 | I38: 764610 | N38: 2024-03-27 | O38: 540310 | P38: 927350 | Q38: 1254020 | R38: 1454920
A39: 2024-03-28 | B39: 454900 | C39: 303270 | D39: 617140 | E39: 454900 | F39: 617140 | G39: 554120 | H39: 587190 | I39: 752550 | N39: 2024-03-28 | O39: 533020 | P39: 920060 | Q39: 1249160 | R39: 1445030
A40: 2024-03-29 | B40: 447610 | C40: 298410 | D40: 607250 | E40: 447610 | F40: 607250 | G40: 545240 | H40: =H39-$H$3 -> 577780 | I40: 740490 | N40: 2024-03-29 | O40: 525730 | P40: 912770 | Q40: 1244300 | R40: 1435140
A41: 2024-03-30 | B41: 440320 | C41: 293550 | D41: 597360 | E41: 440320 | F41: 597360 | G41: 536360 | H41: 568370 | I41: 728430 | N41: 2024-03-30 | O41: 518440 | P41: 905480 | Q41: 1239440 | R41: 1425250
A42: 2024-03-31 | B42: 433030 | C42: 288690 | D42: 587470 | E42: 433030 | F42: 587470 | G42: 527480 | H42: 558960 | I42: 716370 | N42: 2024-03-31 | O42: 511150 | P42: 898190 | Q42: 1234580 | R42: 1415360
A43: 2024-04-01 | B43: 425740 | C43: 283830 | D43: 577580 | E43: 425740 | F43: 577580 | G43: 518600 | H43: 549550 | I43: 704310 | N43: 2024-04-01 | O43: 503860 | P43: 890900 | Q43: 1229720 | R43: 1405470
A44: 2024-04-02 | B44: 418450 | C44: 278970 | D44: 567690 | E44: 418450 | F44: 567690 | G44: 509720 | H44: 540140 | I44: 692250 | N44: 2024-04-02 | O44: 496570 | P44: 883610 | Q44: 1224860 | R44: 1395580
A45: 2024-04-03 | B45: 411160 | C45: 274110 | D45: 557800 | E45: 411160 | F45: 557800 | G45: 500840 | H45: 530730 | I45: 680190 | N45: 2024-04-03 | O45: 489280 | P45: 876320 | Q45: 1220000 | R45: 1385690
A46: 2024-04-04 | B46: 403870 | C46: 269250 | D46: 547910 | E46: 403870 | F46: 547910 | G46: 491960 | H46: 521320 | I46: 668130 | N46: 2024-04-04 | O46: 481990 | P46: 869030 | Q46: 1215140 | R46: 1375800
A47: 2024-04-05 | B47: 396580 | C47: 264390 | D47: 538020 | E47: 396580 | F47: 538020 | G47: 483080 | H47: 511910 | I47: 656070 | N47: 2024-04-05 | O47: 474700 | P47: 861740 | Q47: 1210280 | R47: 1365910
A48: 2024-04-06 | B48: 389290 | C48: 259530 | D48: 528130 | E48: 389290 | F48: 528130 | G48: 474200 | H48: 502500 | I48: 644010 | N48: 2024-04-06 | O48: 467410 | P48: 854450 | Q48: 1205420 | R48: 1356020
A49: 2024-04-07 | B49: 382000 | C49: 254670 | D49: 518240 | E49: 382000 | F49: 518240 | G49: 465320 | H49: 493090 | I49: 631950 | N49: 2024-04-07 | O49: 460120 | P49: 847160 | Q49: 1200560 | R49: 1346130
A50: 2024-04-08 | B50: 374710 | C50: 249810 | D50: 508350 | E50: 374710 | F50: 508350 | G50: 456440 | H50: 483680 | I50: 619890 | N50: 2024-04-08 | O50: 452830 | P50: 839870 | Q50: 1195700 | R50: 1336240
A51: 2024-04-09 | B51: 367420 | C51: 244950 | D51: 498460 | E51: 367420 | F51: 498460 | G51: 447560 | H51: 474270 | I51: 607830 | N51: 2024-04-09 | O51: 445540 | P51: 832580 | Q51: 1190840 | R51: 1326350
A52: 2024-04-10 | B52: 360130 | C52: 240090 | D52: 488570 | E52: 360130 | F52: 488570 | G52: 438680 | H52: 464860 | I52: 595770 | N52: 2024-04-10 | O52: 438250 | P52: 825290 | Q52: 1185980 | R52: 1316460
A53: 2024-04-11 | B53: 352840 | C53: 235230 | D53: 478680 | E53: 352840 | F53: 478680 | G53: 429800 | H53: 455450 | I53: 583710 | N53: 2024-04-11 | O53: 430960 | P53: 818000 | Q53: 1181120 | R53: 1306570
A54: 2024-04-12 | B54: 345550 | C54: 230370 | D54: 468790 | E54: 345550 | F54: 468790 | G54: 420920 | H54: 446040 | I54: 571650 | N54: 2024-04-12 | O54: 423670 | P54: 810710 | Q54: 1176260 | R54: 1296680
A55: 2024-04-13 | B55: 338260 | C55: 225510 | D55: 458900 | E55: 338260 | F55: 458900 | G55: 412040 | H55: 436630 | I55: 559590 | N55: 2024-04-13 | O55: 416380 | P55: 803420 | Q55: 1171400 | R55: 1286790
A56: 2024-04-14 | B56: 330970 | C56: 220650 | D56: 449010 | E56: 330970 | F56: 449010 | G56: 403160 | H56: 427220 | I56: 547530 | N56: 2024-04-14 | O56: 409090 | P56: 796130 | Q56: 1166540 | R56: 1276900
A57: 2024-04-15 | B57: 323680 | C57: 215790 | D57: 439120 | E57: 323680 | F57: 439120 | G57: 394280 | H57: 417810 | I57: 535470 | N57: 2024-04-15 | O57: 401800 | P57: 788840 | Q57: 1161680 | R57: 1267010
A58: 2024-04-16 | B58: 316390 | C58: 210930 | D58: 429230 | E58: 316390 | F58: 429230 | G58: 385400 | H58: 408400 | I58: 523410 | N58: 2024-04-16 | O58: 394510 | P58: 781550 | Q58: 1156820 | R58: 1257120
A59: 2024-04-17 | B59: 309100 | C59: 206070 | D59: 419340 | E59: 309100 | F59: 419340 | G59: 376520 | H59: 398990 | I59: 511350 | N59: 2024-04-17 | O59: 387220 | P59: 774260 | Q59: 1151960 | R59: 1247230
A60: 2024-04-18 | B60: 301810 | C60: 201210 | D60: 409450 | E60: 301810 | F60: 409450 | G60: 367640 | H60: 389580 | I60: 499290 | N60: 2024-04-18 | O60: 379930 | P60: 766970 | Q60: 1147100 | R60: 1237340
A61: 2024-04-19 | B61: 294520 | C61: 196350 | D61: 399560 | E61: 294520 | F61: 399560 | G61: 358760 | H61: 380170 | I61: 487230 | N61: 2024-04-19 | O61: 372640 | P61: 759680 | Q61: 1142240 | R61: 1227450
A62: 2024-04-20 | B62: 287230 | C62: 191490 | D62: 389670 | E62: 287230 | F62: 389670 | G62: 349880 | H62: 370760 | I62: 475170 | N62: 2024-04-20 | O62: 365350 | P62: 752390 | Q62: 1137380 | R62: 1217560
A63: 2024-04-21 | B63: 279940 | C63: 186630 | D63: 379780 | E63: 279940 | F63: 379780 | G63: 341000 | H63: 361350 | I63: 463110 | N63: 2024-04-21 | O63: 358060 | P63: 745100 | Q63: 1132520 | R63: 1207670
A64: 2024-04-22 | B64: 272650 | C64: 181770 | D64: 369890 | E64: 272650 | F64: 369890 | G64: 332120 | H64: 351940 | I64: 451050 | N64: 2024-04-22 | O64: 350770 | P64: 737810 | Q64: 1127660 | R64: 1197780
A65: 2024-04-23 | B65: 265360 | C65: 176910 | D65: 360000 | E65: 265360 | F65: 360000 | G65: 323240 | H65: 342530 | I65: 438990 | N65: 2024-04-23 | O65: 343480 | P65: 730520 | Q65: 1122800 | R65: 1187890
A66: 2024-04-24 | B66: 258070 | C66: 172050 | D66: 350110 | E66: 258070 | F66: 350110 | G66: 314360 | H66: 333120 | I66: 426930 | N66: 2024-04-24 | O66: 336190 | P66: 723230 | Q66: 1117940 | R66: 1178000
A67: 2024-04-25 | B67: 250780 | C67: 167190 | D67: 340220 | E67: 250780 | F67: 340220 | G67: 305480 | H67: 323710 | I67: 414870 | N67: 2024-04-25 | O67: 328900 | P67: 715940 | Q67: 1113080 | R67: 1168110
A68: 2024-04-26 | B68: 243490 | C68: 162330 | D68: 330330 | E68: 243490 | F68: 330330 | G68: 296600 | H68: 314300 | I68: 402810 | N68: 2024-04-26 | O68: 321610 | P68: 708650 | Q68: 1108220 | R68: 1158220
A69: 2024-04-27 | B69: 236200 | C69: 157470 | D69: 320440 | E69: 236200 | F69: 320440 | G69: 287720 | H69: 304890 | I69: 390750 | N69: 2024-04-27 | O69: 314320 | P69: 701360 | Q69: 1103360 | R69: 1148330
A70: 2024-04-28 | B70: 228910 | C70: 152610 | D70: 310550 | E70: 228910 | F70: 310550 | G70: 278840 | H70: 295480 | I70: 378690 | N70: 2024-04-28 | O70: 307030 | P70: 694070 | Q70: 1098500 | R70: 1138440
A71: 2024-04-29 | B71: 221620 | C71: 147750 | D71: 300660 | E71: 221620 | F71: 300660 | G71: 269960 | H71: 286070 | I71: 366630 | N71: 2024-04-29 | O71: 299740 | P71: 686780 | Q71: 1093640 | R71: 1128550
A72: 2024-04-30 | B72: 214330 | C72: 142890 | D72: 290770 | E72: 214330 | F72: 290770 | G72: 261080 | H72: =H71-$H$3 -> 276660 | I72: 354570 | N72: 2024-04-30 | O72: 292450 | P72: 679490 | Q72: 1088780 | R72: 1118660
A73: 2024-05-01 | B73: =B72-$B$3 -> 207040 | C73: =C72-$C$3 -> 138030 | D73: =D72-$D$3 -> 280880 | E73: =E72-$E$3 -> 207040 | F73: =F72-$F$3 -> 280880 | G73: =G72-$G$3 -> 252200 | H73: 267250 | I73: =I72-$I$3 -> 342510 | N73: 2024-05-01 | O73: =O72-$B$3 -> 285160 | P73: 672200 | Q73: =Q72-$C$3 -> 1083920 | R73: =R72-$D$3 -> 1108770
A74: 2024-05-02 | B74: 199750 | C74: 133170 | D74: 270990 | E74: 199750 | F74: 270990 | G74: 243320 | H74: 257840 | I74: 330450 | N74: 2024-05-02 | O74: 277870 | P74: 664910 | Q74: 1079060 | R74: 1098880
A75: 2024-05-03 | B75: 192460 | C75: 128310 | D75: 261100 | E75: 192460 | F75: 261100 | G75: 234440 | H75: 248430 | I75: 318390 | N75: 2024-05-03 | O75: 270580 | P75: 657620 | Q75: 1074200 | R75: 1088990
A76: 2024-05-04 | B76: 185170 | C76: 123450 | D76: 251210 | E76: 185170 | F76: 251210 | G76: 225560 | H76: 239020 | I76: 306330 | N76: 2024-05-04 | O76: 263290 | P76: 650330 | Q76: 1069340 | R76: 1079100
A77: 2024-05-05 | B77: 177880 | C77: 118590 | D77: 241320 | E77: 177880 | F77: 241320 | G77: 216680 | H77: 229610 | I77: 294270 | N77: 2024-05-05 | O77: 256000 | P77: 643040 | Q77: 1064480 | R77: 1069210
A78: 2024-05-06 | B78: 170590 | C78: 113730 | D78: 231430 | E78: 170590 | F78: 231430 | G78: 207800 | H78: 220200 | I78: 282210 | N78: 2024-05-06 | O78: 248710 | P78: 635750 | Q78: 1059620 | R78: 1059320
A79: 2024-05-07 | B79: 163300 | C79: 108870 | D79: 221540 | E79: 163300 | F79: 221540 | G79: 198920 | H79: 210790 | I79: 270150 | N79: 2024-05-07 | O79: 241420 | P79: 628460 | Q79: 1054760 | R79: 1049430
A80: 2024-05-08 | B80: 156010 | C80: 104010 | D80: 211650 | E80: 156010 | F80: 211650 | G80: 190040 | H80: 201380 | I80: 258090 | N80: 2024-05-08 | O80: 234130 | P80: 621170 | Q80: 1049900 | R80: 1039540
A81: 2024-05-09 | B81: 148720 | C81: 99150 | D81: 201760 | E81: 148720 | F81: 201760 | G81: 181160 | H81: 191970 | I81: 246030 | N81: 2024-05-09 | O81: 226840 | P81: 613880 | Q81: 1045040 | R81: 1029650
A82: 2024-05-10 | B82: 141430 | C82: 94290 | D82: 191870 | E82: 141430 | F82: 191870 | G82: 172280 | H82: 182560 | I82: 233970 | N82: 2024-05-10 | O82: 219550 | P82: 606590 | Q82: 1040180 | R82: 1019760
A83: 2024-05-11 | B83: 134140 | C83: 89430 | D83: 181980 | E83: 134140 | F83: 181980 | G83: 163400 | H83: 173150 | I83: 221910 | N83: 2024-05-11 | O83: 212260 | P83: 599300 | Q83: 1035320 | R83: 1009870
A84: 2024-05-12 | B84: 126850 | C84: 84570 | D84: 172090 | E84: 126850 | F84: 172090 | G84: 154520 | H84: 163740 | I84: 209850 | N84: 2024-05-12 | O84: 204970 | P84: 592010 | Q84: 1030460 | R84: 999980
A85: 2024-05-13 | B85: 119560 | C85: 79710 | D85: 162200 | E85: 119560 | F85: 162200 | G85: 145640 | H85: 154330 | I85: 197790 | N85: 2024-05-13 | O85: 197680 | P85: 584720 | Q85: 1025600 | R85: 990090
A86: 2024-05-14 | B86: 112270 | C86: 74850 | D86: 152310 | E86: 112270 | F86: 152310 | G86: 136760 | H86: 144920 | I86: 185730 | N86: 2024-05-14 | O86: 190390 | P86: 577430 | Q86: 1020740 | R86: 980200
A87: 2024-05-15 | B87: 104980 | C87: 69990 | D87: 142420 | E87: 104980 | F87: 142420 | G87: 127880 | H87: 135510 | I87: 173670 | N87: 2024-05-15 | O87: 183100 | P87: 570140 | Q87: 1015880 | R87: 970310
A88: 2024-05-16 | B88: 97690 | C88: 65130 | D88: 132530 | E88: 97690 | F88: 132530 | G88: 119000 | H88: 126100 | I88: 161610 | N88: 2024-05-16 | O88: 175810 | P88: 562850 | Q88: 1011020 | R88: 960420
A89: 2024-05-17 | B89: 90400 | C89: 60270 | D89: 122640 | E89: 90400 | F89: 122640 | G89: 110120 | H89: 116690 | I89: 149550 | N89: 2024-05-17 | O89: 168520 | P89: 555560 | Q89: 1006160 | R89: 950530
A90: 2024-05-18 | B90: 83110 | C90: 55410 | D90: 112750 | E90: 83110 | F90: 112750 | G90: 101240 | H90: 107280 | I90: 137490 | N90: 2024-05-18 | O90: 161230 | P90: 548270 | Q90: 1001300 | R90: 940640
A91: 2024-05-19 | B91: 75820 | C91: 50550 | D91: 102860 | E91: 75820 | F91: 102860 | G91: 92360 | H91: 97870 | I91: 125430 | N91: 2024-05-19 | O91: 153940 | P91: 540980 | Q91: 996440 | R91: 930750
A92: 2024-05-20 | B92: 68530 | C92: 45690 | D92: 92970 | E92: 68530 | F92: 92970 | G92: 83480 | H92: 88460 | I92: 113370 | N92: 2024-05-20 | O92: 146650 | P92: 533690 | Q92: 991580 | R92: 920860
A93: 2024-05-21 | B93: 61240 | C93: 40830 | D93: 83080 | E93: 61240 | F93: 83080 | G93: 74600 | H93: 79050 | I93: 101310 | N93: 2024-05-21 | O93: 139360 | P93: 526400 | Q93: 986720 | R93: 910970
A94: 2024-05-22 | B94: 53950 | C94: 35970 | D94: 73190 | E94: 53950 | F94: 73190 | G94: 65720 | H94: 69640 | I94: 89250 | N94: 2024-05-22 | O94: 132070 | P94: 519110 | Q94: 981860 | R94: 901080
A95: 2024-05-23 | B95: 46660 | C95: 31110 | D95: 63300 | E95: 46660 | F95: 63300 | G95: 56840 | H95: 60230 | I95: 77190 | N95: 2024-05-23 | O95: 124780 | P95: 511820 | Q95: 977000 | R95: 891190
A96: 2024-05-24 | B96: 39370 | C96: 26250 | D96: 53410 | E96: 39370 | F96: 53410 | G96: 47960 | H96: 50820 | I96: 65130 | N96: 2024-05-24 | O96: 117490 | P96: 504530 | Q96: 972140 | R96: 881300
A97: 2024-05-25 | B97: 32080 | C97: 21390 | D97: 43520 | E97: 32080 | F97: 43520 | G97: 39080 | H97: 41410 | I97: 53070 | N97: 2024-05-25 | O97: 110200 | P97: 497240 | Q97: 967280 | R97: 871410
A98: 2024-05-26 | B98: 24790 | C98: 16530 | D98: 33630 | E98: 24790 | F98: 33630 | G98: 30200 | H98: 32000 | I98: 41010 | N98: 2024-05-26 | O98: 102910 | P98: 489950 | Q98: 962420 | R98: 861520
A99: 2024-05-27 | B99: 17500 | C99: 11670 | D99: 23740 | E99: 17500 | F99: 23740 | G99: 21320 | H99: 22590 | I99: 28950 | N99: 2024-05-27 | O99: 95620 | P99: 482660 | Q99: 957560 | R99: 851630
A100: 2024-05-28 | B100: 10210 | C100: 6810 | D100: 13850 | E100: 10210 | F100: 13850 | G100: 12440 | H100: 13180 | I100: 16890 | N100: 2024-05-28 | O100: 88330 | P100: 475370 | Q100: 952700 | R100: 841740
A101: 2024-05-29 | B101: 2920 | C101: 1950 | D101: 3960 | E101: 2920 | F101: 3960 | G101: 3560 | H101: 3770 | I101: 4830 | N101: 2024-05-29 | O101: 81040 | P101: 468080 | Q101: 947840 | R101: 831850
A102: 2024-05-30 | B102: -4370 | C102: -2910 | D102: -5930 | E102: -4370 | F102: -5930 | G102: -5320 | H102: -5640 | I102: -7230 | N102: 2024-05-30 | O102: 73750 | P102: 460790 | Q102: 942980 | R102: 821960
A103: 2024-05-31 | B103: -11660 | C103: -7770 | D103: -15820 | E103: -11660 | F103: -15820 | G103: -14200 | H103: -15050 | I103: -19290 | N103: 2024-05-31 | O103: 66460 | P103: 453500 | Q103: 938120 | R103: 812070
A104: 2024-06-01 | B104: -18950 | C104: -12630 | D104: -25710 | E104: -18950 | F104: -25710 | G104: -23080 | H104: =H103-$H$3 -> -24460 | I104: -31350 | N104: 2024-06-01 | O104: 59170 | P104: 446210 | Q104: 933260 | R104: 802180
A105: 2024-06-02 | B105: -26240 | C105: -17490 | D105: -35600 | E105: -26240 | F105: -35600 | G105: -31960 | H105: -33870 | I105: -43410 | N105: 2024-06-02 | O105: 51880 | P105: 438920 | Q105: 928400 | R105: 792290
A106: 2024-06-03 | B106: -33530 | C106: -22350 | D106: -45490 | E106: -33530 | F106: -45490 | G106: -40840 | H106: -43280 | I106: -55470 | N106: 2024-06-03 | O106: 44590 | P106: 431630 | Q106: 923540 | R106: 782400
A107: 2024-06-04 | B107: -40820 | C107: -27210 | D107: -55380 | E107: -40820 | F107: -55380 | G107: -49720 | H107: -52690 | I107: -67530 | N107: 2024-06-04 | O107: 37300 | P107: 424340 | Q107: 918680 | R107: 772510
A108: 2024-06-05 | B108: -48110 | C108: -32070 | D108: -65270 | E108: -48110 | F108: -65270 | G108: -58600 | H108: -62100 | I108: -79590 | N108: 2024-06-05 | O108: 30010 | P108: 417050 | Q108: 913820 | R108: 762620
A109: 2024-06-06 | B109: -55400 | C109: -36930 | D109: -75160 | E109: -55400 | F109: -75160 | G109: -67480 | H109: -71510 | I109: -91650 | N109: 2024-06-06 | O109: 22720 | P109: 409760 | Q109: 908960 | R109: 752730
A110: 2024-06-07 | B110: -62690 | C110: -41790 | D110: -85050 | E110: -62690 | F110: -85050 | G110: -76360 | H110: -80920 | I110: -103710 | N110: 2024-06-07 | O110: 15430 | P110: 402470 | Q110: 904100 | R110: 742840
A111: 2024-06-08 | B111: -69980 | C111: -46650 | D111: -94940 | E111: -69980 | F111: -94940 | G111: -85240 | H111: -90330 | I111: -115770 | N111: 2024-06-08 | O111: 8140 | P111: 395180 | Q111: 899240 | R111: 732950
A112: 2024-06-09 | B112: -77270 | C112: -51510 | D112: -104830 | E112: -77270 | F112: -104830 | G112: -94120 | H112: -99740 | I112: -127830 | N112: 2024-06-09 | O112: 850 | P112: 387890 | Q112: 894380 | R112: 723060
A113: 2024-06-10 | B113: -84560 | C113: -56370 | D113: -114720 | E113: -84560 | F113: -114720 | G113: -103000 | H113: -109150 | I113: -139890 | N113: 2024-06-10 | O113: -6440 | P113: 380600 | Q113: 889520 | R113: 713170
A114: 2024-06-11 | B114: -91850 | C114: -61230 | D114: -124610 | E114: -91850 | F114: -124610 | G114: -111880 | H114: -118560 | I114: -151950 | N114: 2024-06-11 | O114: -13730 | P114: 373310 | Q114: 884660 | R114: 703280
A115: 2024-06-12 | B115: -99140 | C115: -66090 | D115: -134500 | E115: -99140 | F115: -134500 | G115: -120760 | H115: -127970 | I115: -164010 | N115: 2024-06-12 | O115: -21020 | P115: 366020 | Q115: 879800 | R115: 693390
A116: 2024-06-13 | B116: -106430 | C116: -70950 | D116: -144390 | E116: -106430 | F116: -144390 | G116: -129640 | H116: -137380 | I116: -176070 | N116: 2024-06-13 | O116: -28310 | P116: 358730 | Q116: 874940 | R116: 683500
A117: 2024-06-14 | B117: -113720 | C117: -75810 | D117: -154280 | E117: -113720 | F117: -154280 | G117: -138520 | H117: -146790 | I117: -188130 | N117: 2024-06-14 | O117: -35600 | P117: 351440 | Q117: 870080 | R117: 673610
A118: 2024-06-15 | B118: -121010 | C118: -80670 | D118: -164170 | E118: -121010 | F118: -164170 | G118: -147400 | H118: -156200 | I118: -200190 | N118: 2024-06-15 | O118: -42890 | P118: 344150 | Q118: 865220 | R118: 663720
A119: 2024-06-16 | B119: -128300 | C119: -85530 | D119: -174060 | E119: -128300 | F119: -174060 | G119: -156280 | H119: -165610 | I119: -212250 | N119: 2024-06-16 | O119: -50180 | P119: 336860 | Q119: 860360 | R119: 653830
A120: 2024-06-17 | B120: -135590 | C120: -90390 | D120: -183950 | E120: -135590 | F120: -183950 | G120: -165160 | H120: -175020 | I120: -224310 | N120: 2024-06-17 | O120: -57470 | P120: 329570 | Q120: 855500 | R120: 643940
A121: 2024-06-18 | B121: -142880 | C121: -95250 | D121: -193840 | E121: -142880 | F121: -193840 | G121: -174040 | H121: -184430 | I121: -236370 | N121: 2024-06-18 | O121: -64760 | P121: 322280 | Q121: 850640 | R121: 634050
A122: 2024-06-19 | B122: -150170 | C122: -100110 | D122: -203730 | E122: -150170 | F122: -203730 | G122: -182920 | H122: -193840 | I122: -248430 | N122: 2024-06-19 | O122: -72050 | P122: 314990 | Q122: 845780 | R122: 624160
A123: 2024-06-20 | B123: -157460 | C123: -104970 | D123: -213620 | E123: -157460 | F123: -213620 | G123: -191800 | H123: -203250 | I123: -260490 | N123: 2024-06-20 | O123: -79340 | P123: 307700 | Q123: 840920 | R123: 614270
A124: 2024-06-21 | B124: -164750 | C124: -109830 | D124: -223510 | E124: -164750 | F124: -223510 | G124: -200680 | H124: -212660 | I124: -272550 | N124: 2024-06-21 | O124: -86630 | P124: 300410 | Q124: 836060 | R124: 604380
A125: 2024-06-22 | B125: -172040 | C125: -114690 | D125: -233400 | E125: -172040 | F125: -233400 | G125: -209560 | H125: -222070 | I125: -284610 | N125: 2024-06-22 | O125: -93920 | P125: 293120 | Q125: 831200 | R125: 594490

Sheet 환불기준 (위약금 제외)
A1: 2024-1학기 정규입사자 퇴사 시 환불 기준표(위약금 제외) | N1: 1인실 요청 시
B2: 매지2인실 | C2: 매지3인실 | D2: 세연2인실 | E2: 세연3인실 | F2: 청연3인실 | G2: 세연비트방 | H2: 세연장애인실 | I2: 청연장애인실 | L2: 내용 | O2: 매지2인실 | P2: 매지3인실 | Q2: 세연2인실 | R2: 세연3인실 | S2: 청연3인실 | T2: 세연비트방
A3: 1박 단가 | B3: 7290 | C3: 4860 | D3: 9890 | E3: 7290 | F3: 9890 | G3: 8880 | H3: 9410 | I3: 12060 | K3: 입사일 | L3: 2024-02-25 | N3: 1박 단가 | O3: =B3*2 -> 14580 | P3: =C3*3 -> 14580 | Q3: =D3*2 -> 19780 | R3: =E3*3 -> 21870 | S3: =F3*3 -> 29670 | T3: =G3*3 -> 26640
A4: 입사비 | B4: =B3*118 -> 860220 | C4: =C3*118 -> 573480 | D4: =D3*118 -> 1167020 | E4: 860220 | F4: 1167020 | G4: 1047840 | H4: 1110380 | I4: 1423080 | K4: 퇴사일 | L4: 2024-06-22 | N4: 입사비 | O4: =O3*118 -> 1720440 | P4: =P3*118 -> 1720440 | Q4: =Q3*118 -> 2334040 | R4: 2580660 | S4: 3501060 | T4: 3143520
A5: 위약금(기본공제금액) | B5: 0 | C5: 0 | D5: 0 | E5: 0 | F5: 0 | G5: 0 | H5: 0 | I5: 0 | K5: 사용일(박) | L5: =L4-L3 -> 118
A6: 위약금(원 단위 절사) | B6: 0 | C6: 0 | D6: 0 | E6: 0 | F6: 0 | G6: 0 | H6: 0 | I6: 0 | N6: 위약금(기본공제금액) | O6: =O4*20% -> 344088 | P6: =P4*20% -> 344088 | Q6: =Q4*20% -> 466808 | R6: 516132 | S6: 700212 | T6: 628704
A7: 2024-02-25 | B7: =B4-B6 -> 860220 | C7: =C4-C6 -> 573480 | D7: =D4-D6 -> 1167020 | E7: 860220 | F7: 1167020 | G7: 1047840 | H7: 1110380 | I7: 1423080 | N7: 2024-02-25 | O7: =O4-O6 -> 1376352 | P7: =P4-P6 -> 1376352 | Q7: =Q4-Q6 -> 1867232 | R7: 2064528 | S7: 2800848 | T7: 2514816
A8: 2024-02-26 | B8: =B7-$B$3 -> 852930 | C8: =C7-$C$3 -> 568620 | D8: =D7-$D$3 -> 1157130 | E8: =E7-$E$3 -> 852930 | F8: =F7-$F$3 -> 1157130 | G8: =G7-$G$3 -> 1038960 | H8: =H7-$H$3 -> 1100970 | I8: =I7-$I$3 -> 1411020 | N8: 2024-02-26 | O8: =O7-$B$3 -> 1369062 | P8: =P7-$C$3 -> 1371492 | Q8: =Q7-$D$3 -> 1857342 | R8: =R7-$E$3 -> 2057238 | S8: =S7-$F$3 -> 2790958 | T8: =T7-$G$3 -> 2505936
A9: 2024-02-27 | B9: =B8-$B$3 -> 845640 | C9: =C8-$C$3 -> 563760 | D9: =D8-$D$3 -> 1147240 | E9: =E8-$E$3 -> 845640 | F9: =F8-$F$3 -> 1147240 | G9: =G8-$G$3 -> 1030080 | H9: 1091560 | I9: =I8-$I$3 -> 1398960 | N9: 2024-02-27 | O9: =O8-$B$3 -> 1361772 | P9: =P8-$C$3 -> 1366632 | Q9: =Q8-$D$3 -> 1847452 | R9: =R8-$E$3 -> 2049948 | S9: =S8-$F$3 -> 2781068 | T9: =T8-$G$3 -> 2497056
A10: 2024-02-28 | B10: 838350 | C10: 558900 | D10: 1137350 | E10: 838350 | F10: 1137350 | G10: 1021200 | H10: 1082150 | I10: 1386900 | N10: 2024-02-28 | O10: 1354482 | P10: 1361772 | Q10: 1837562 | R10: 2042658 | S10: 2771178 | T10: 2488176
A11: 2024-02-29 | B11: 831060 | C11: 554040 | D11: 1127460 | E11: 831060 | F11: 1127460 | G11: 1012320 | H11: 1072740 | I11: 1374840 | N11: 2024-02-29 | O11: 1347192 | P11: 1356912 | Q11: 1827672 | R11: 2035368 | S11: 2761288 | T11: 2479296
A12: 2024-03-01 | B12: 823770 | C12: 549180 | D12: 1117570 | E12: 823770 | F12: 1117570 | G12: 1003440 | H12: 1063330 | I12: 1362780 | N12: 2024-03-01 | O12: 1339902 | P12: 1352052 | Q12: 1817782 | R12: 2028078 | S12: 2751398 | T12: 2470416
A13: 2024-03-02 | B13: 816480 | C13: 544320 | D13: 1107680 | E13: 816480 | F13: 1107680 | G13: 994560 | H13: 1053920 | I13: 1350720 | N13: 2024-03-02 | O13: 1332612 | P13: 1347192 | Q13: 1807892 | R13: 2020788 | S13: 2741508 | T13: 2461536
A14: 2024-03-03 | B14: 809190 | C14: 539460 | D14: 1097790 | E14: 809190 | F14: 1097790 | G14: 985680 | H14: 1044510 | I14: 1338660 | N14: 2024-03-03 | O14: 1325322 | P14: 1342332 | Q14: 1798002 | R14: 2013498 | S14: 2731618 | T14: 2452656
A15: 2024-03-04 | B15: 801900 | C15: 534600 | D15: 1087900 | E15: 801900 | F15: 1087900 | G15: 976800 | H15: 1035100 | I15: 1326600 | N15: 2024-03-04 | O15: 1318032 | P15: 1337472 | Q15: 1788112 | R15: 2006208 | S15: 2721728 | T15: 2443776
A16: 2024-03-05 | B16: 794610 | C16: 529740 | D16: 1078010 | E16: 794610 | F16: 1078010 | G16: 967920 | H16: 1025690 | I16: 1314540 | N16: 2024-03-05 | O16: 1310742 | P16: 1332612 | Q16: 1778222 | R16: 1998918 | S16: 2711838 | T16: 2434896
A17: 2024-03-06 | B17: 787320 | C17: 524880 | D17: 1068120 | E17: 787320 | F17: 1068120 | G17: 959040 | H17: 1016280 | I17: 1302480 | N17: 2024-03-06 | O17: 1303452 | P17: 1327752 | Q17: 1768332 | R17: 1991628 | S17: 2701948 | T17: 2426016
A18: 2024-03-07 | B18: 780030 | C18: 520020 | D18: 1058230 | E18: 780030 | F18: 1058230 | G18: 950160 | H18: 1006870 | I18: 1290420 | N18: 2024-03-07 | O18: 1296162 | P18: 1322892 | Q18: 1758442 | R18: 1984338 | S18: 2692058 | T18: 2417136
A19: 2024-03-08 | B19: 772740 | C19: 515160 | D19: 1048340 | E19: 772740 | F19: 1048340 | G19: 941280 | H19: 997460 | I19: 1278360 | N19: 2024-03-08 | O19: 1288872 | P19: 1318032 | Q19: 1748552 | R19: 1977048 | S19: 2682168 | T19: 2408256
A20: 2024-03-09 | B20: 765450 | C20: 510300 | D20: 1038450 | E20: 765450 | F20: 1038450 | G20: 932400 | H20: 988050 | I20: 1266300 | N20: 2024-03-09 | O20: 1281582 | P20: 1313172 | Q20: 1738662 | R20: 1969758 | S20: 2672278 | T20: 2399376
A21: 2024-03-10 | B21: 758160 | C21: 505440 | D21: 1028560 | E21: 758160 | F21: 1028560 | G21: 923520 | H21: 978640 | I21: 1254240 | N21: 2024-03-10 | O21: 1274292 | P21: 1308312 | Q21: 1728772 | R21: 1962468 | S21: 2662388 | T21: 2390496
A22: 2024-03-11 | B22: 750870 | C22: 500580 | D22: 1018670 | E22: 750870 | F22: 1018670 | G22: 914640 | H22: 969230 | I22: 1242180 | N22: 2024-03-11 | O22: 1267002 | P22: 1303452 | Q22: 1718882 | R22: 1955178 | S22: 2652498 | T22: 2381616
A23: 2024-03-12 | B23: 743580 | C23: 495720 | D23: 1008780 | E23: 743580 | F23: 1008780 | G23: 905760 | H23: 959820 | I23: 1230120 | N23: 2024-03-12 | O23: 1259712 | P23: 1298592 | Q23: 1708992 | R23: 1947888 | S23: 2642608 | T23: 2372736
A24: 2024-03-13 | B24: 736290 | C24: 490860 | D24: 998890 | E24: 736290 | F24: 998890 | G24: 896880 | H24: 950410 | I24: 1218060 | N24: 2024-03-13 | O24: 1252422 | P24: 1293732 | Q24: 1699102 | R24: 1940598 | S24: 2632718 | T24: 2363856
A25: 2024-03-14 | B25: 729000 | C25: 486000 | D25: 989000 | E25: 729000 | F25: 989000 | G25: 888000 | H25: 941000 | I25: 1206000 | N25: 2024-03-14 | O25: 1245132 | P25: 1288872 | Q25: 1689212 | R25: 1933308 | S25: 2622828 | T25: 2354976
A26: 2024-03-15 | B26: 721710 | C26: 481140 | D26: 979110 | E26: 721710 | F26: 979110 | G26: 879120 | H26: 931590 | I26: 1193940 | N26: 2024-03-15 | O26: 1237842 | P26: 1284012 | Q26: 1679322 | R26: 1926018 | S26: 2612938 | T26: 2346096
A27: 2024-03-16 | B27: 714420 | C27: 476280 | D27: 969220 | E27: 714420 | F27: 969220 | G27: 870240 | H27: 922180 | I27: 1181880 | N27: 2024-03-16 | O27: 1230552 | P27: 1279152 | Q27: 1669432 | R27: 1918728 | S27: 2603048 | T27: 2337216
A28: 2024-03-17 | B28: 707130 | C28: 471420 | D28: 959330 | E28: 707130 | F28: 959330 | G28: 861360 | H28: 912770 | I28: 1169820 | N28: 2024-03-17 | O28: 1223262 | P28: 1274292 | Q28: 1659542 | R28: 1911438 | S28: 2593158 | T28: 2328336
A29: 2024-03-18 | B29: 699840 | C29: 466560 | D29: 949440 | E29: 699840 | F29: 949440 | G29: 852480 | H29: 903360 | I29: 1157760 | N29: 2024-03-18 | O29: 1215972 | P29: 1269432 | Q29: 1649652 | R29: 1904148 | S29: 2583268 | T29: 2319456
A30: 2024-03-19 | B30: 692550 | C30: 461700 | D30: 939550 | E30: 692550 | F30: 939550 | G30: 843600 | H30: 893950 | I30: 1145700 | N30: 2024-03-19 | O30: 1208682 | P30: 1264572 | Q30: 1639762 | R30: 1896858 | S30: 2573378 | T30: 2310576
A31: 2024-03-20 | B31: 685260 | C31: 456840 | D31: 929660 | E31: 685260 | F31: 929660 | G31: 834720 | H31: 884540 | I31: 1133640 | N31: 2024-03-20 | O31: 1201392 | P31: 1259712 | Q31: 1629872 | R31: 1889568 | S31: 2563488 | T31: 2301696
A32: 2024-03-21 | B32: 677970 | C32: 451980 | D32: 919770 | E32: 677970 | F32: 919770 | G32: 825840 | H32: 875130 | I32: 1121580 | N32: 2024-03-21 | O32: 1194102 | P32: 1254852 | Q32: 1619982 | R32: 1882278 | S32: 2553598 | T32: 2292816
A33: 2024-03-22 | B33: 670680 | C33: 447120 | D33: 909880 | E33: 670680 | F33: 909880 | G33: 816960 | H33: 865720 | I33: 1109520 | N33: 2024-03-22 | O33: 1186812 | P33: 1249992 | Q33: 1610092 | R33: 1874988 | S33: 2543708 | T33: 2283936
A34: 2024-03-23 | B34: 663390 | C34: 442260 | D34: 899990 | E34: 663390 | F34: 899990 | G34: 808080 | H34: 856310 | I34: 1097460 | N34: 2024-03-23 | O34: 1179522 | P34: 1245132 | Q34: 1600202 | R34: 1867698 | S34: 2533818 | T34: 2275056
A35: 2024-03-24 | B35: 656100 | C35: 437400 | D35: 890100 | E35: 656100 | F35: 890100 | G35: 799200 | H35: 846900 | I35: 1085400 | N35: 2024-03-24 | O35: 1172232 | P35: 1240272 | Q35: 1590312 | R35: 1860408 | S35: 2523928 | T35: 2266176
A36: 2024-03-25 | B36: 648810 | C36: 432540 | D36: 880210 | E36: 648810 | F36: 880210 | G36: 790320 | H36: 837490 | I36: 1073340 | N36: 2024-03-25 | O36: 1164942 | P36: 1235412 | Q36: 1580422 | R36: 1853118 | S36: 2514038 | T36: 2257296
A37: 2024-03-26 | B37: 641520 | C37: 427680 | D37: 870320 | E37: 641520 | F37: 870320 | G37: 781440 | H37: 828080 | I37: 1061280 | N37: 2024-03-26 | O37: 1157652 | P37: 1230552 | Q37: 1570532 | R37: 1845828 | S37: 2504148 | T37: 2248416
A38: 2024-03-27 | B38: 634230 | C38: 422820 | D38: 860430 | E38: 634230 | F38: 860430 | G38: 772560 | H38: 818670 | I38: 1049220 | N38: 2024-03-27 | O38: 1150362 | P38: 1225692 | Q38: 1560642 | R38: 1838538 | S38: 2494258 | T38: 2239536
A39: 2024-03-28 | B39: 626940 | C39: 417960 | D39: 850540 | E39: 626940 | F39: 850540 | G39: 763680 | H39: 809260 | I39: 1037160 | N39: 2024-03-28 | O39: 1143072 | P39: 1220832 | Q39: 1550752 | R39: 1831248 | S39: 2484368 | T39: 2230656
A40: 2024-03-29 | B40: 619650 | C40: 413100 | D40: 840650 | E40: 619650 | F40: 840650 | G40: 754800 | H40: 799850 | I40: 1025100 | N40: 2024-03-29 | O40: 1135782 | P40: 1215972 | Q40: 1540862 | R40: 1823958 | S40: 2474478 | T40: 2221776
A41: 2024-03-30 | B41: 612360 | C41: 408240 | D41: 830760 | E41: 612360 | F41: 830760 | G41: 745920 | H41: 790440 | I41: 1013040 | N41: 2024-03-30 | O41: 1128492 | P41: 1211112 | Q41: 1530972 | R41: 1816668 | S41: 2464588 | T41: 2212896
A42: 2024-03-31 | B42: 605070 | C42: 403380 | D42: 820870 | E42: 605070 | F42: 820870 | G42: 737040 | H42: 781030 | I42: 1000980 | N42: 2024-03-31 | O42: 1121202 | P42: 1206252 | Q42: 1521082 | R42: 1809378 | S42: 2454698 | T42: 2204016
A43: 2024-04-01 | B43: 597780 | C43: 398520 | D43: 810980 | E43: 597780 | F43: 810980 | G43: 728160 | H43: 771620 | I43: 988920 | N43: 2024-04-01 | O43: 1113912 | P43: 1201392 | Q43: 1511192 | R43: 1802088 | S43: 2444808 | T43: 2195136
A44: 2024-04-02 | B44: 590490 | C44: 393660 | D44: 801090 | E44: 590490 | F44: 801090 | G44: 719280 | H44: 762210 | I44: 976860 | N44: 2024-04-02 | O44: 1106622 | P44: 1196532 | Q44: 1501302 | R44: 1794798 | S44: 2434918 | T44: 2186256
A45: 2024-04-03 | B45: 583200 | C45: 388800 | D45: 791200 | E45: 583200 | F45: 791200 | G45: 710400 | H45: 752800 | I45: 964800 | N45: 2024-04-03 | O45: 1099332 | P45: 1191672 | Q45: 1491412 | R45: 1787508 | S45: 2425028 | T45: 2177376
A46: 2024-04-04 | B46: 575910 | C46: 383940 | D46: 781310 | E46: 575910 | F46: 781310 | G46: 701520 | H46: 743390 | I46: 952740 | N46: 2024-04-04 | O46: 1092042 | P46: 1186812 | Q46: 1481522 | R46: 1780218 | S46: 2415138 | T46: 2168496
A47: 2024-04-05 | B47: 568620 | C47: 379080 | D47: 771420 | E47: 568620 | F47: 771420 | G47: 692640 | H47: 733980 | I47: 940680 | N47: 2024-04-05 | O47: 1084752 | P47: 1181952 | Q47: 1471632 | R47: 1772928 | S47: 2405248 | T47: 2159616
A48: 2024-04-06 | B48: 561330 | C48: 374220 | D48: 761530 | E48: 561330 | F48: 761530 | G48: 683760 | H48: 724570 | I48: 928620 | N48: 2024-04-06 | O48: 1077462 | P48: 1177092 | Q48: 1461742 | R48: 1765638 | S48: 2395358 | T48: 2150736
A49: 2024-04-07 | B49: 554040 | C49: 369360 | D49: 751640 | E49: 554040 | F49: 751640 | G49: 674880 | H49: 715160 | I49: 916560 | N49: 2024-04-07 | O49: 1070172 | P49: 1172232 | Q49: 1451852 | R49: 1758348 | S49: 2385468 | T49: 2141856
A50: 2024-04-08 | B50: 546750 | C50: 364500 | D50: 741750 | E50: 546750 | F50: 741750 | G50: 666000 | H50: 705750 | I50: 904500 | N50: 2024-04-08 | O50: 1062882 | P50: 1167372 | Q50: 1441962 | R50: 1751058 | S50: 2375578 | T50: 2132976
A51: 2024-04-09 | B51: 539460 | C51: 359640 | D51: 731860 | E51: 539460 | F51: 731860 | G51: 657120 | H51: 696340 | I51: 892440 | N51: 2024-04-09 | O51: 1055592 | P51: 1162512 | Q51: 1432072 | R51: 1743768 | S51: 2365688 | T51: 2124096
A52: 2024-04-10 | B52: 532170 | C52: 354780 | D52: 721970 | E52: 532170 | F52: 721970 | G52: 648240 | H52: 686930 | I52: 880380 | N52: 2024-04-10 | O52: 1048302 | P52: 1157652 | Q52: 1422182 | R52: 1736478 | S52: 2355798 | T52: 2115216
A53: 2024-04-11 | B53: 524880 | C53: 349920 | D53: 712080 | E53: 524880 | F53: 712080 | G53: 639360 | H53: 677520 | I53: 868320 | N53: 2024-04-11 | O53: 1041012 | P53: 1152792 | Q53: 1412292 | R53: 1729188 | S53: 2345908 | T53: 2106336
A54: 2024-04-12 | B54: 517590 | C54: 345060 | D54: 702190 | E54: 517590 | F54: 702190 | G54: 630480 | H54: 668110 | I54: 856260 | N54: 2024-04-12 | O54: 1033722 | P54: 1147932 | Q54: 1402402 | R54: 1721898 | S54: 2336018 | T54: 2097456
A55: 2024-04-13 | B55: 510300 | C55: 340200 | D55: 692300 | E55: 510300 | F55: 692300 | G55: 621600 | H55: 658700 | I55: 844200 | N55: 2024-04-13 | O55: 1026432 | P55: 1143072 | Q55: 1392512 | R55: 1714608 | S55: 2326128 | T55: 2088576
A56: 2024-04-14 | B56: 503010 | C56: 335340 | D56: 682410 | E56: 503010 | F56: 682410 | G56: 612720 | H56: 649290 | I56: 832140 | N56: 2024-04-14 | O56: 1019142 | P56: 1138212 | Q56: 1382622 | R56: 1707318 | S56: 2316238 | T56: 2079696
A57: 2024-04-15 | B57: 495720 | C57: 330480 | D57: 672520 | E57: 495720 | F57: 672520 | G57: 603840 | H57: 639880 | I57: 820080 | N57: 2024-04-15 | O57: 1011852 | P57: 1133352 | Q57: 1372732 | R57: 1700028 | S57: 2306348 | T57: 2070816
A58: 2024-04-16 | B58: 488430 | C58: 325620 | D58: 662630 | E58: 488430 | F58: 662630 | G58: 594960 | H58: 630470 | I58: 808020 | N58: 2024-04-16 | O58: 1004562 | P58: 1128492 | Q58: 1362842 | R58: 1692738 | S58: 2296458 | T58: 2061936
A59: 2024-04-17 | B59: 481140 | C59: 320760 | D59: 652740 | E59: 481140 | F59: 652740 | G59: 586080 | H59: 621060 | I59: 795960 | N59: 2024-04-17 | O59: 997272 | P59: 1123632 | Q59: 1352952 | R59: 1685448 | S59: 2286568 | T59: 2053056
A60: 2024-04-18 | B60: 473850 | C60: 315900 | D60: 642850 | E60: 473850 | F60: 642850 | G60: 577200 | H60: 611650 | I60: 783900 | N60: 2024-04-18 | O60: 989982 | P60: 1118772 | Q60: 1343062 | R60: 1678158 | S60: 2276678 | T60: 2044176
A61: 2024-04-19 | B61: 466560 | C61: 311040 | D61: 632960 | E61: 466560 | F61: 632960 | G61: 568320 | H61: 602240 | I61: 771840 | N61: 2024-04-19 | O61: 982692 | P61: 1113912 | Q61: 1333172 | R61: 1670868 | S61: 2266788 | T61: 2035296
A62: 2024-04-20 | B62: 459270 | C62: 306180 | D62: 623070 | E62: 459270 | F62: 623070 | G62: 559440 | H62: 592830 | I62: 759780 | N62: 2024-04-20 | O62: 975402 | P62: 1109052 | Q62: 1323282 | R62: 1663578 | S62: 2256898 | T62: 2026416
A63: 2024-04-21 | B63: 451980 | C63: 301320 | D63: 613180 | E63: 451980 | F63: 613180 | G63: 550560 | H63: 583420 | I63: 747720 | N63: 2024-04-21 | O63: 968112 | P63: 1104192 | Q63: 1313392 | R63: 1656288 | S63: 2247008 | T63: 2017536
A64: 2024-04-22 | B64: 444690 | C64: 296460 | D64: 603290 | E64: 444690 | F64: 603290 | G64: 541680 | H64: 574010 | I64: 735660 | N64: 2024-04-22 | O64: 960822 | P64: 1099332 | Q64: 1303502 | R64: 1648998 | S64: 2237118 | T64: 2008656
A65: 2024-04-23 | B65: 437400 | C65: 291600 | D65: 593400 | E65: 437400 | F65: 593400 | G65: 532800 | H65: 564600 | I65: 723600 | N65: 2024-04-23 | O65: 953532 | P65: 1094472 | Q65: 1293612 | R65: 1641708 | S65: 2227228 | T65: 1999776
A66: 2024-04-24 | B66: 430110 | C66: 286740 | D66: 583510 | E66: 430110 | F66: 583510 | G66: 523920 | H66: 555190 | I66: 711540 | N66: 2024-04-24 | O66: 946242 | P66: 1089612 | Q66: 1283722 | R66: 1634418 | S66: 2217338 | T66: 1990896
A67: 2024-04-25 | B67: 422820 | C67: 281880 | D67: 573620 | E67: 422820 | F67: 573620 | G67: 515040 | H67: 545780 | I67: 699480 | N67: 2024-04-25 | O67: 938952 | P67: 1084752 | Q67: 1273832 | R67: 1627128 | S67: 2207448 | T67: 1982016
A68: 2024-04-26 | B68: 415530 | C68: 277020 | D68: 563730 | E68: 415530 | F68: 563730 | G68: 506160 | H68: 536370 | I68: 687420 | N68: 2024-04-26 | O68: 931662 | P68: 1079892 | Q68: 1263942 | R68: 1619838 | S68: 2197558 | T68: 1973136
A69: 2024-04-27 | B69: 408240 | C69: 272160 | D69: 553840 | E69: 408240 | F69: 553840 | G69: 497280 | H69: 526960 | I69: 675360 | N69: 2024-04-27 | O69: 924372 | P69: 1075032 | Q69: 1254052 | R69: 1612548 | S69: 2187668 | T69: 1964256
A70: 2024-04-28 | B70: 400950 | C70: 267300 | D70: 543950 | E70: 400950 | F70: 543950 | G70: 488400 | H70: 517550 | I70: 663300 | N70: 2024-04-28 | O70: 917082 | P70: 1070172 | Q70: 1244162 | R70: 1605258 | S70: 2177778 | T70: 1955376
A71: 2024-04-29 | B71: 393660 | C71: 262440 | D71: 534060 | E71: 393660 | F71: 534060 | G71: 479520 | H71: 508140 | I71: 651240 | N71: 2024-04-29 | O71: 909792 | P71: 1065312 | Q71: 1234272 | R71: 1597968 | S71: 2167888 | T71: 1946496
A72: 2024-04-30 | B72: 386370 | C72: 257580 | D72: 524170 | E72: 386370 | F72: 524170 | G72: 470640 | H72: =H71-$H$3 -> 498730 | I72: 639180 | N72: 2024-04-30 | O72: 902502 | P72: 1060452 | Q72: 1224382 | R72: 1590678 | S72: 2157998 | T72: 1937616
A73: 2024-05-01 | B73: =B72-$B$3 -> 379080 | C73: =C72-$C$3 -> 252720 | D73: =D72-$D$3 -> 514280 | E73: =E72-$E$3 -> 379080 | F73: =F72-$F$3 -> 514280 | G73: =G72-$G$3 -> 461760 | H73: 489320 | I73: =I72-$I$3 -> 627120 | N73: 2024-05-01 | O73: =O72-$B$3 -> 895212 | P73: =P72-$C$3 -> 1055592 | Q73: =Q72-$D$3 -> 1214492 | R73: =R72-$E$3 -> 1583388 | S73: =S72-$F$3 -> 2148108 | T73: =T72-$G$3 -> 1928736
A74: 2024-05-02 | B74: 371790 | C74: 247860 | D74: 504390 | E74: 371790 | F74: 504390 | G74: 452880 | H74: 479910 | I74: 615060 | N74: 2024-05-02 | O74: 887922 | P74: 1050732 | Q74: 1204602 | R74: 1576098 | S74: 2138218 | T74: 1919856
A75: 2024-05-03 | B75: 364500 | C75: 243000 | D75: 494500 | E75: 364500 | F75: 494500 | G75: 444000 | H75: 470500 | I75: 603000 | N75: 2024-05-03 | O75: 880632 | P75: 1045872 | Q75: 1194712 | R75: 1568808 | S75: 2128328 | T75: 1910976
A76: 2024-05-04 | B76: 357210 | C76: 238140 | D76: 484610 | E76: 357210 | F76: 484610 | G76: 435120 | H76: 461090 | I76: 590940 | N76: 2024-05-04 | O76: 873342 | P76: 1041012 | Q76: 1184822 | R76: 1561518 | S76: 2118438 | T76: 1902096
A77: 2024-05-05 | B77: 349920 | C77: 233280 | D77: 474720 | E77: 349920 | F77: 474720 | G77: 426240 | H77: 451680 | I77: 578880 | N77: 2024-05-05 | O77: 866052 | P77: 1036152 | Q77: 1174932 | R77: 1554228 | S77: 2108548 | T77: 1893216
A78: 2024-05-06 | B78: 342630 | C78: 228420 | D78: 464830 | E78: 342630 | F78: 464830 | G78: 417360 | H78: 442270 | I78: 566820 | N78: 2024-05-06 | O78: 858762 | P78: 1031292 | Q78: 1165042 | R78: 1546938 | S78: 2098658 | T78: 1884336
A79: 2024-05-07 | B79: 335340 | C79: 223560 | D79: 454940 | E79: 335340 | F79: 454940 | G79: 408480 | H79: 432860 | I79: 554760 | N79: 2024-05-07 | O79: 851472 | P79: 1026432 | Q79: 1155152 | R79: 1539648 | S79: 2088768 | T79: 1875456
A80: 2024-05-08 | B80: 328050 | C80: 218700 | D80: 445050 | E80: 328050 | F80: 445050 | G80: 399600 | H80: 423450 | I80: 542700 | N80: 2024-05-08 | O80: 844182 | P80: 1021572 | Q80: 1145262 | R80: 1532358 | S80: 2078878 | T80: 1866576
A81: 2024-05-09 | B81: 320760 | C81: 213840 | D81: 435160 | E81: 320760 | F81: 435160 | G81: 390720 | H81: 414040 | I81: 530640 | N81: 2024-05-09 | O81: 836892 | P81: 1016712 | Q81: 1135372 | R81: 1525068 | S81: 2068988 | T81: 1857696
A82: 2024-05-10 | B82: 313470 | C82: 208980 | D82: 425270 | E82: 313470 | F82: 425270 | G82: 381840 | H82: 404630 | I82: 518580 | N82: 2024-05-10 | O82: 829602 | P82: 1011852 | Q82: 1125482 | R82: 1517778 | S82: 2059098 | T82: 1848816
A83: 2024-05-11 | B83: 306180 | C83: 204120 | D83: 415380 | E83: 306180 | F83: 415380 | G83: 372960 | H83: 395220 | I83: 506520 | N83: 2024-05-11 | O83: 822312 | P83: 1006992 | Q83: 1115592 | R83: 1510488 | S83: 2049208 | T83: 1839936
A84: 2024-05-12 | B84: 298890 | C84: 199260 | D84: 405490 | E84: 298890 | F84: 405490 | G84: 364080 | H84: 385810 | I84: 494460 | N84: 2024-05-12 | O84: 815022 | P84: 1002132 | Q84: 1105702 | R84: 1503198 | S84: 2039318 | T84: 1831056
A85: 2024-05-13 | B85: 291600 | C85: 194400 | D85: 395600 | E85: 291600 | F85: 395600 | G85: 355200 | H85: 376400 | I85: 482400 | N85: 2024-05-13 | O85: 807732 | P85: 997272 | Q85: 1095812 | R85: 1495908 | S85: 2029428 | T85: 1822176
A86: 2024-05-14 | B86: 284310 | C86: 189540 | D86: 385710 | E86: 284310 | F86: 385710 | G86: 346320 | H86: 366990 | I86: 470340 | N86: 2024-05-14 | O86: 800442 | P86: 992412 | Q86: 1085922 | R86: 1488618 | S86: 2019538 | T86: 1813296
A87: 2024-05-15 | B87: 277020 | C87: 184680 | D87: 375820 | E87: 277020 | F87: 375820 | G87: 337440 | H87: 357580 | I87: 458280 | N87: 2024-05-15 | O87: 793152 | P87: 987552 | Q87: 1076032 | R87: 1481328 | S87: 2009648 | T87: 1804416
A88: 2024-05-16 | B88: 269730 | C88: 179820 | D88: 365930 | E88: 269730 | F88: 365930 | G88: 328560 | H88: 348170 | I88: 446220 | N88: 2024-05-16 | O88: 785862 | P88: 982692 | Q88: 1066142 | R88: 1474038 | S88: 1999758 | T88: 1795536
A89: 2024-05-17 | B89: 262440 | C89: 174960 | D89: 356040 | E89: 262440 | F89: 356040 | G89: 319680 | H89: 338760 | I89: 434160 | N89: 2024-05-17 | O89: 778572 | P89: 977832 | Q89: 1056252 | R89: 1466748 | S89: 1989868 | T89: 1786656
A90: 2024-05-18 | B90: 255150 | C90: 170100 | D90: 346150 | E90: 255150 | F90: 346150 | G90: 310800 | H90: 329350 | I90: 422100 | N90: 2024-05-18 | O90: 771282 | P90: 972972 | Q90: 1046362 | R90: 1459458 | S90: 1979978 | T90: 1777776
A91: 2024-05-19 | B91: 247860 | C91: 165240 | D91: 336260 | E91: 247860 | F91: 336260 | G91: 301920 | H91: 319940 | I91: 410040 | N91: 2024-05-19 | O91: 763992 | P91: 968112 | Q91: 1036472 | R91: 1452168 | S91: 1970088 | T91: 1768896
A92: 2024-05-20 | B92: 240570 | C92: 160380 | D92: 326370 | E92: 240570 | F92: 326370 | G92: 293040 | H92: 310530 | I92: 397980 | N92: 2024-05-20 | O92: 756702 | P92: 963252 | Q92: 1026582 | R92: 1444878 | S92: 1960198 | T92: 1760016
A93: 2024-05-21 | B93: 233280 | C93: 155520 | D93: 316480 | E93: 233280 | F93: 316480 | G93: 284160 | H93: 301120 | I93: 385920 | N93: 2024-05-21 | O93: 749412 | P93: 958392 | Q93: 1016692 | R93: 1437588 | S93: 1950308 | T93: 1751136
A94: 2024-05-22 | B94: 225990 | C94: 150660 | D94: 306590 | E94: 225990 | F94: 306590 | G94: 275280 | H94: 291710 | I94: 373860 | N94: 2024-05-22 | O94: 742122 | P94: 953532 | Q94: 1006802 | R94: 1430298 | S94: 1940418 | T94: 1742256
A95: 2024-05-23 | B95: 218700 | C95: 145800 | D95: 296700 | E95: 218700 | F95: 296700 | G95: 266400 | H95: 282300 | I95: 361800 | N95: 2024-05-23 | O95: 734832 | P95: 948672 | Q95: 996912 | R95: 1423008 | S95: 1930528 | T95: 1733376
A96: 2024-05-24 | B96: 211410 | C96: 140940 | D96: 286810 | E96: 211410 | F96: 286810 | G96: 257520 | H96: 272890 | I96: 349740 | N96: 2024-05-24 | O96: 727542 | P96: 943812 | Q96: 987022 | R96: 1415718 | S96: 1920638 | T96: 1724496
A97: 2024-05-25 | B97: 204120 | C97: 136080 | D97: 276920 | E97: 204120 | F97: 276920 | G97: 248640 | H97: 263480 | I97: 337680 | N97: 2024-05-25 | O97: 720252 | P97: 938952 | Q97: 977132 | R97: 1408428 | S97: 1910748 | T97: 1715616
A98: 2024-05-26 | B98: 196830 | C98: 131220 | D98: 267030 | E98: 196830 | F98: 267030 | G98: 239760 | H98: 254070 | I98: 325620 | N98: 2024-05-26 | O98: 712962 | P98: 934092 | Q98: 967242 | R98: 1401138 | S98: 1900858 | T98: 1706736
A99: 2024-05-27 | B99: 189540 | C99: 126360 | D99: 257140 | E99: 189540 | F99: 257140 | G99: 230880 | H99: 244660 | I99: 313560 | N99: 2024-05-27 | O99: 705672 | P99: 929232 | Q99: 957352 | R99: 1393848 | S99: 1890968 | T99: 1697856
A100: 2024-05-28 | B100: 182250 | C100: 121500 | D100: 247250 | E100: 182250 | F100: 247250 | G100: 222000 | H100: 235250 | I100: 301500 | N100: 2024-05-28 | O100: 698382 | P100: 924372 | Q100: 947462 | R100: 1386558 | S100: 1881078 | T100: 1688976
A101: 2024-05-29 | B101: 174960 | C101: 116640 | D101: 237360 | E101: 174960 | F101: 237360 | G101: 213120 | H101: 225840 | I101: 289440 | N101: 2024-05-29 | O101: 691092 | P101: 919512 | Q101: 937572 | R101: 1379268 | S101: 1871188 | T101: 1680096
A102: 2024-05-30 | B102: 167670 | C102: 111780 | D102: 227470 | E102: 167670 | F102: 227470 | G102: 204240 | H102: 216430 | I102: 277380 | N102: 2024-05-30 | O102: 683802 | P102: 914652 | Q102: 927682 | R102: 1371978 | S102: 1861298 | T102: 1671216
A103: 2024-05-31 | B103: 160380 | C103: 106920 | D103: 217580 | E103: 160380 | F103: 217580 | G103: 195360 | H103: 207020 | I103: 265320 | N103: 2024-05-31 | O103: 676512 | P103: 909792 | Q103: 917792 | R103: 1364688 | S103: 1851408 | T103: 1662336
A104: 2024-06-01 | B104: 153090 | C104: 102060 | D104: 207690 | E104: 153090 | F104: 207690 | G104: 186480 | H104: 197610 | I104: 253260 | N104: 2024-06-01 | O104: 669222 | P104: 904932 | Q104: 907902 | R104: 1357398 | S104: 1841518 | T104: 1653456
A105: 2024-06-02 | B105: 145800 | C105: 97200 | D105: 197800 | E105: 145800 | F105: 197800 | G105: 177600 | H105: 188200 | I105: 241200 | N105: 2024-06-02 | O105: 661932 | P105: 900072 | Q105: 898012 | R105: 1350108 | S105: 1831628 | T105: 1644576
A106: 2024-06-03 | B106: 138510 | C106: 92340 | D106: 187910 | E106: 138510 | F106: 187910 | G106: 168720 | H106: 178790 | I106: 229140 | N106: 2024-06-03 | O106: 654642 | P106: 895212 | Q106: 888122 | R106: 1342818 | S106: 1821738 | T106: 1635696
A107: 2024-06-04 | B107: 131220 | C107: 87480 | D107: 178020 | E107: 131220 | F107: 178020 | G107: 159840 | H107: 169380 | I107: 217080 | N107: 2024-06-04 | O107: 647352 | P107: 890352 | Q107: 878232 | R107: 1335528 | S107: 1811848 | T107: 1626816
A108: 2024-06-05 | B108: 123930 | C108: 82620 | D108: 168130 | E108: 123930 | F108: 168130 | G108: 150960 | H108: 159970 | I108: 205020 | N108: 2024-06-05 | O108: 640062 | P108: 885492 | Q108: 868342 | R108: 1328238 | S108: 1801958 | T108: 1617936
A109: 2024-06-06 | B109: 116640 | C109: 77760 | D109: 158240 | E109: 116640 | F109: 158240 | G109: 142080 | H109: 150560 | I109: 192960 | N109: 2024-06-06 | O109: 632772 | P109: 880632 | Q109: 858452 | R109: 1320948 | S109: 1792068 | T109: 1609056
A110: 2024-06-07 | B110: 109350 | C110: 72900 | D110: 148350 | E110: 109350 | F110: 148350 | G110: 133200 | H110: 141150 | I110: 180900 | N110: 2024-06-07 | O110: 625482 | P110: 875772 | Q110: 848562 | R110: 1313658 | S110: 1782178 | T110: 1600176
A111: 2024-06-08 | B111: 102060 | C111: 68040 | D111: 138460 | E111: 102060 | F111: 138460 | G111: 124320 | H111: 131740 | I111: 168840 | N111: 2024-06-08 | O111: 618192 | P111: 870912 | Q111: 838672 | R111: 1306368 | S111: 1772288 | T111: 1591296
A112: 2024-06-09 | B112: 94770 | C112: 63180 | D112: 128570 | E112: 94770 | F112: 128570 | G112: 115440 | H112: 122330 | I112: 156780 | N112: 2024-06-09 | O112: 610902 | P112: 866052 | Q112: 828782 | R112: 1299078 | S112: 1762398 | T112: 1582416
A113: 2024-06-10 | B113: 87480 | C113: 58320 | D113: 118680 | E113: 87480 | F113: 118680 | G113: 106560 | H113: 112920 | I113: 144720 | N113: 2024-06-10 | O113: 603612 | P113: 861192 | Q113: 818892 | R113: 1291788 | S113: 1752508 | T113: 1573536
A114: 2024-06-11 | B114: 80190 | C114: 53460 | D114: 108790 | E114: 80190 | F114: 108790 | G114: 97680 | H114: 103510 | I114: 132660 | N114: 2024-06-11 | O114: 596322 | P114: 856332 | Q114: 809002 | R114: 1284498 | S114: 1742618 | T114: 1564656
A115: 2024-06-12 | B115: 72900 | C115: 48600 | D115: 98900 | E115: 72900 | F115: 98900 | G115: 88800 | H115: 94100 | I115: 120600 | N115: 2024-06-12 | O115: 589032 | P115: 851472 | Q115: 799112 | R115: 1277208 | S115: 1732728 | T115: 1555776
A116: 2024-06-13 | B116: 65610 | C116: 43740 | D116: 89010 | E116: 65610 | F116: 89010 | G116: 79920 | H116: 84690 | I116: 108540 | N116: 2024-06-13 | O116: 581742 | P116: 846612 | Q116: 789222 | R116: 1269918 | S116: 1722838 | T116: 1546896
A117: 2024-06-14 | B117: 58320 | C117: 38880 | D117: 79120 | E117: 58320 | F117: 79120 | G117: 71040 | H117: 75280 | I117: 96480 | N117: 2024-06-14 | O117: 574452 | P117: 841752 | Q117: 779332 | R117: 1262628 | S117: 1712948 | T117: 1538016
A118: 2024-06-15 | B118: 51030 | C118: 34020 | D118: 69230 | E118: 51030 | F118: 69230 | G118: 62160 | H118: 65870 | I118: 84420 | N118: 2024-06-15 | O118: 567162 | P118: 836892 | Q118: 769442 | R118: 1255338 | S118: 1703058 | T118: 1529136
A119: 2024-06-16 | B119: 43740 | C119: 29160 | D119: 59340 | E119: 43740 | F119: 59340 | G119: 53280 | H119: 56460 | I119: 72360 | N119: 2024-06-16 | O119: 559872 | P119: 832032 | Q119: 759552 | R119: 1248048 | S119: 1693168 | T119: 1520256
A120: 2024-06-17 | B120: 36450 | C120: 24300 | D120: 49450 | E120: 36450 | F120: 49450 | G120: 44400 | H120: 47050 | I120: 60300 | N120: 2024-06-17 | O120: 552582 | P120: 827172 | Q120: 749662 | R120: 1240758 | S120: 1683278 | T120: 1511376
A121: 2024-06-18 | B121: 29160 | C121: 19440 | D121: 39560 | E121: 29160 | F121: 39560 | G121: 35520 | H121: 37640 | I121: 48240 | N121: 2024-06-18 | O121: 545292 | P121: 822312 | Q121: 739772 | R121: 1233468 | S121: 1673388 | T121: 1502496
A122: 2024-06-19 | B122: 21870 | C122: 14580 | D122: 29670 | E122: 21870 | F122: 29670 | G122: 26640 | H122: 28230 | I122: 36180 | N122: 2024-06-19 | O122: 538002 | P122: 817452 | Q122: 729882 | R122: 1226178 | S122: 1663498 | T122: 1493616
A123: 2024-06-20 | B123: 14580 | C123: 9720 | D123: 19780 | E123: 14580 | F123: 19780 | G123: 17760 | H123: 18820 | I123: 24120 | N123: 2024-06-20 | O123: 530712 | P123: 812592 | Q123: 719992 | R123: 1218888 | S123: 1653608 | T123: 1484736
A124: 2024-06-21 | B124: 7290 | C124: 4860 | D124: 9890 | E124: 7290 | F124: 9890 | G124: 8880 | H124: 9410 | I124: 12060 | N124: 2024-06-21 | O124: 523422 | P124: 807732 | Q124: 710102 | R124: 1211598 | S124: 1643718 | T124: 1475856
A125: 2024-06-22 | B125: 0 | C125: 0 | D125: 0 | E125: 0 | F125: 0 | G125: 0 | H125: 0 | I125: 0 | N125: 2024-06-22 | O125: 516132 | P125: 802872 | Q125: 700212 | R125: 1204308 | S125: 1633828 | T125: 1466976

Sheet 중도입사 금액
A1: 2024-1학기 중도입사 금액
B2: 매지2인실 | C2: 매지3인실 | D2: 세연2인실 | E2: 세연3인실 | F2: 청연3인실 | G2: 세연비트방 | H2: 세연장애인실 | I2: 청연장애인실 | L2: 내용
A3: 1박 단가 | B3: 7290 | C3: 4860 | D3: 9890 | E3: 7290 | F3: 9890 | G3: 8880 | H3: 9410 | I3: 12060 | K3: 입사일 | L3: 2024-02-25
A4: 입사비 | B4: =B3*118 -> 860220 | C4: =C3*118 -> 573480 | D4: 1167020 | E4: 860220 | F4: 1167020 | G4: 1047840 | H4: 1110380 | I4: 1423080 | K4: 퇴사일 | L4: 2024-06-22
A5: 위약금 | B5: 0 | C5: 0 | D5: 0 | E5: 0 | F5: 0 | G5: 0 | H5: 0 | I5: 0 | K5: 사용일(박) | L5: =L4-L3 -> 118
A6: 2024-02-25 | B6: =B4-B5 -> 860220 | C6: =C4-C5 -> 573480 | D6: 1167020 | E6: 860220 | F6: 1167020 | G6: 1047840 | H6: 1110380 | I6: 1423080
A7: 2024-02-26 | B7: =B6-$B$3 -> 852930 | C7: =C6-$C$3 -> 568620 | D7: =D6-$D$3 -> 1157130 | E7: =E6-$E$3 -> 852930 | F7: =F6-$F$3 -> 1157130 | G7: =G6-$G$3 -> 1038960 | H7: =H6-$H$3 -> 1100970 | I7: =I6-$I$3 -> 1411020
A8: 2024-02-27 | B8: =B7-$B$3 -> 845640 | C8: =C7-$C$3 -> 563760 | D8: =D7-$D$3 -> 1147240 | E8: =E7-$E$3 -> 845640 | F8: =F7-$F$3 -> 1147240 | G8: =G7-$G$3 -> 1030080 | H8: =H7-$H$3 -> 1091560 | I8: =I7-$I$3 -> 1398960
A9: 2024-02-28 | B9: 838350 | C9: 558900 | D9: 1137350 | E9: 838350 | F9: 1137350 | G9: 1021200 | H9: 1082150 | I9: 1386900
A10: 2024-02-29 | B10: 831060 | C10: 554040 | D10: 1127460 | E10: 831060 | F10: 1127460 | G10: 1012320 | H10: 1072740 | I10: 1374840
A11: 2024-03-01 | B11: 823770 | C11: 549180 | D11: 1117570 | E11: 823770 | F11: 1117570 | G11: 1003440 | H11: 1063330 | I11: 1362780
A12: 2024-03-02 | B12: 816480 | C12: 544320 | D12: 1107680 | E12: 816480 | F12: 1107680 | G12: 994560 | H12: 1053920 | I12: 1350720
A13: 2024-03-03 | B13: 809190 | C13: 539460 | D13: 1097790 | E13: 809190 | F13: 1097790 | G13: 985680 | H13: 1044510 | I13: 1338660
A14: 2024-03-04 | B14: 801900 | C14: 534600 | D14: 1087900 | E14: 801900 | F14: 1087900 | G14: 976800 | H14: 1035100 | I14: 1326600
A15: 2024-03-05 | B15: 794610 | C15: 529740 | D15: 1078010 | E15: 794610 | F15: 1078010 | G15: 967920 | H15: 1025690 | I15: 1314540
A16: 2024-03-06 | B16: 787320 | C16: 524880 | D16: 1068120 | E16: 787320 | F16: 1068120 | G16: 959040 | H16: 1016280 | I16: 1302480
A17: 2024-03-07 | B17: 780030 | C17: 520020 | D17: 1058230 | E17: 780030 | F17: 1058230 | G17: 950160 | H17: 1006870 | I17: 1290420
A18: 2024-03-08 | B18: 772740 | C18: 515160 | D18: 1048340 | E18: 772740 | F18: 1048340 | G18: 941280 | H18: 997460 | I18: 1278360
A19: 2024-03-09 | B19: 765450 | C19: 510300 | D19: 1038450 | E19: 765450 | F19: 1038450 | G19: 932400 | H19: 988050 | I19: 1266300
A20: 2024-03-10 | B20: 758160 | C20: 505440 | D20: 1028560 | E20: 758160 | F20: 1028560 | G20: 923520 | H20: 978640 | I20: 1254240
A21: 2024-03-11 | B21: 750870 | C21: 500580 | D21: 1018670 | E21: 750870 | F21: 1018670 | G21: 914640 | H21: 969230 | I21: 1242180
A22: 2024-03-12 | B22: 743580 | C22: 495720 | D22: 1008780 | E22: 743580 | F22: 1008780 | G22: 905760 | H22: 959820 | I22: 1230120
A23: 2024-03-13 | B23: 736290 | C23: 490860 | D23: 998890 | E23: 736290 | F23: 998890 | G23: 896880 | H23: 950410 | I23: 1218060
A24: 2024-03-14 | B24: 729000 | C24: 486000 | D24: 989000 | E24: 729000 | F24: 989000 | G24: 888000 | H24: 941000 | I24: 1206000
A25: 2024-03-15 | B25: 721710 | C25: 481140 | D25: 979110 | E25: 721710 | F25: 979110 | G25: 879120 | H25: 931590 | I25: 1193940
A26: 2024-03-16 | B26: 714420 | C26: 476280 | D26: 969220 | E26: 714420 | F26: 969220 | G26: 870240 | H26: 922180 | I26: 1181880
A27: 2024-03-17 | B27: 707130 | C27: 471420 | D27: 959330 | E27: 707130 | F27: 959330 | G27: 861360 | H27: 912770 | I27: 1169820
A28: 2024-03-18 | B28: 699840 | C28: 466560 | D28: 949440 | E28: 699840 | F28: 949440 | G28: 852480 | H28: 903360 | I28: 1157760
A29: 2024-03-19 | B29: 692550 | C29: 461700 | D29: 939550 | E29: 692550 | F29: 939550 | G29: 843600 | H29: 893950 | I29: 1145700
A30: 2024-03-20 | B30: 685260 | C30: 456840 | D30: 929660 | E30: 685260 | F30: 929660 | G30: 834720 | H30: 884540 | I30: 1133640
A31: 2024-03-21 | B31: 677970 | C31: 451980 | D31: 919770 | E31: 677970 | F31: 919770 | G31: 825840 | H31: 875130 | I31: 1121580
A32: 2024-03-22 | B32: 670680 | C32: 447120 | D32: 909880 | E32: 670680 | F32: 909880 | G32: 816960 | H32: 865720 | I32: 1109520
A33: 2024-03-23 | B33: 663390 | C33: 442260 | D33: 899990 | E33: 663390 | F33: 899990 | G33: 808080 | H33: 856310 | I33: 1097460
A34: 2024-03-24 | B34: 656100 | C34: 437400 | D34: 890100 | E34: 656100 | F34: 890100 | G34: 799200 | H34: 846900 | I34: 1085400
A35: 2024-03-25 | B35: 648810 | C35: 432540 | D35: 880210 | E35: 648810 | F35: 880210 | G35: 790320 | H35: 837490 | I35: 1073340
A36: 2024-03-26 | B36: 641520 | C36: 427680 | D36: 870320 | E36: 641520 | F36: 870320 | G36: 781440 | H36: 828080 | I36: 1061280
A37: 2024-03-27 | B37: 634230 | C37: 422820 | D37: 860430 | E37: 634230 | F37: 860430 | G37: 772560 | H37: 818670 | I37: 1049220
A38: 2024-03-28 | B38: 626940 | C38: 417960 | D38: 850540 | E38: 626940 | F38: 850540 | G38: 763680 | H38: 809260 | I38: 1037160
A39: 2024-03-29 | B39: 619650 | C39: 413100 | D39: 840650 | E39: 619650 | F39: 840650 | G39: 754800 | H39: 799850 | I39: 1025100
A40: 2024-03-30 | B40: 612360 | C40: 408240 | D40: 830760 | E40: 612360 | F40: 830760 | G40: 745920 | H40: 790440 | I40: 1013040
A41: 2024-03-31 | B41: 605070 | C41: 403380 | D41: 820870 | E41: 605070 | F41: 820870 | G41: 737040 | H41: 781030 | I41: 1000980
A42: 2024-04-01 | B42: 597780 | C42: 398520 | D42: 810980 | E42: 597780 | F42: 810980 | G42: 728160 | H42: 771620 | I42: 988920
A43: 2024-04-02 | B43: 590490 | C43: 393660 | D43: 801090 | E43: 590490 | F43: 801090 | G43: 719280 | H43: 762210 | I43: 976860
A44: 2024-04-03 | B44: 583200 | C44: 388800 | D44: 791200 | E44: 583200 | F44: 791200 | G44: 710400 | H44: 752800 | I44: 964800
A45: 2024-04-04 | B45: 575910 | C45: 383940 | D45: 781310 | E45: 575910 | F45: 781310 | G45: 701520 | H45: 743390 | I45: 952740
A46: 2024-04-05 | B46: 568620 | C46: 379080 | D46: 771420 | E46: 568620 | F46: 771420 | G46: 692640 | H46: 733980 | I46: 940680
A47: 2024-04-06 | B47: 561330 | C47: 374220 | D47: 761530 | E47: 561330 | F47: 761530 | G47: 683760 | H47: 724570 | I47: 928620
A48: 2024-04-07 | B48: 554040 | C48: 369360 | D48: 751640 | E48: 554040 | F48: 751640 | G48: 674880 | H48: 715160 | I48: 916560
A49: 2024-04-08 | B49: 546750 | C49: 364500 | D49: 741750 | E49: 546750 | F49: 741750 | G49: 666000 | H49: 705750 | I49: 904500
A50: 2024-04-09 | B50: 539460 | C50: 359640 | D50: 731860 | E50: 539460 | F50: 731860 | G50: 657120 | H50: 696340 | I50: 892440
A51: 2024-04-10 | B51: 532170 | C51: 354780 | D51: 721970 | E51: 532170 | F51: 721970 | G51: 648240 | H51: 686930 | I51: 880380
A52: 2024-04-11 | B52: 524880 | C52: 349920 | D52: 712080 | E52: 524880 | F52: 712080 | G52: 639360 | H52: 677520 | I52: 868320
A53: 2024-04-12 | B53: 517590 | C53: 345060 | D53: 702190 | E53: 517590 | F53: 702190 | G53: 630480 | H53: 668110 | I53: 856260
A54: 2024-04-13 | B54: 510300 | C54: 340200 | D54: 692300 | E54: 510300 | F54: 692300 | G54: 621600 | H54: 658700 | I54: 844200
A55: 2024-04-14 | B55: 503010 | C55: 335340 | D55: 682410 | E55: 503010 | F55: 682410 | G55: 612720 | H55: 649290 | I55: 832140
A56: 2024-04-15 | B56: 495720 | C56: 330480 | D56: 672520 | E56: 495720 | F56: 672520 | G56: 603840 | H56: 639880 | I56: 820080
A57: 2024-04-16 | B57: 488430 | C57: 325620 | D57: 662630 | E57: 488430 | F57: 662630 | G57: 594960 | H57: 630470 | I57: 808020
A58: 2024-04-17 | B58: 481140 | C58: 320760 | D58: 652740 | E58: 481140 | F58: 652740 | G58: 586080 | H58: 621060 | I58: 795960
A59: 2024-04-18 | B59: 473850 | C59: 315900 | D59: 642850 | E59: 473850 | F59: 642850 | G59: 577200 | H59: 611650 | I59: 783900
A60: 2024-04-19 | B60: 466560 | C60: 311040 | D60: 632960 | E60: 466560 | F60: 632960 | G60: 568320 | H60: 602240 | I60: 771840
A61: 2024-04-20 | B61: 459270 | C61: 306180 | D61: 623070 | E61: 459270 | F61: 623070 | G61: 559440 | H61: 592830 | I61: 759780
A62: 2024-04-21 | B62: 451980 | C62: 301320 | D62: 613180 | E62: 451980 | F62: 613180 | G62: 550560 | H62: 583420 | I62: 747720
A63: 2024-04-22 | B63: 444690 | C63: 296460 | D63: 603290 | E63: 444690 | F63: 603290 | G63: 541680 | H63: 574010 | I63: 735660
A64: 2024-04-23 | B64: 437400 | C64: 291600 | D64: 593400 | E64: 437400 | F64: 593400 | G64: 532800 | H64: 564600 | I64: 723600
A65: 2024-04-24 | B65: 430110 | C65: 286740 | D65: 583510 | E65: 430110 | F65: 583510 | G65: 523920 | H65: 555190 | I65: 711540
A66: 2024-04-25 | B66: 422820 | C66: 281880 | D66: 573620 | E66: 422820 | F66: 573620 | G66: 515040 | H66: 545780 | I66: 699480
A67: 2024-04-26 | B67: 415530 | C67: 277020 | D67: 563730 | E67: 415530 | F67: 563730 | G67: 506160 | H67: 536370 | I67: 687420
A68: 2024-04-27 | B68: 408240 | C68: 272160 | D68: 553840 | E68: 408240 | F68: 553840 | G68: 497280 | H68: 526960 | I68: 675360
A69: 2024-04-28 | B69: 400950 | C69: 267300 | D69: 543950 | E69: 400950 | F69: 543950 | G69: 488400 | H69: 517550 | I69: 663300
A70: 2024-04-29 | B70: 393660 | C70: 262440 | D70: 534060 | E70: 393660 | F70: 534060 | G70: 479520 | H70: 508140 | I70: 651240
A71: 2024-04-30 | B71: 386370 | C71: 257580 | D71: 524170 | E71: 386370 | F71: 524170 | G71: 470640 | H71: 498730 | I71: 639180
A72: 2024-05-01 | B72: =B71-$B$3 -> 379080 | C72: =C71-$C$3 -> 252720 | D72: =D71-$D$3 -> 514280 | E72: =E71-$E$3 -> 379080 | F72: =F71-$F$3 -> 514280 | G72: =G71-$G$3 -> 461760 | H72: =H71-$H$3 -> 489320 | I72: =I71-$I$3 -> 627120
A73: 2024-05-02 | B73: 371790 | C73: 247860 | D73: 504390 | E73: 371790 | F73: 504390 | G73: 452880 | H73: 479910 | I73: 615060
A74: 2024-05-03 | B74: 364500 | C74: 243000 | D74: 494500 | E74: 364500 | F74: 494500 | G74: 444000 | H74: 470500 | I74: 603000
A75: 2024-05-04 | B75: 357210 | C75: 238140 | D75: 484610 | E75: 357210 | F75: 484610 | G75: 435120 | H75: 461090 | I75: 590940
A76: 2024-05-05 | B76: 349920 | C76: 233280 | D76: 474720 | E76: 349920 | F76: 474720 | G76: 426240 | H76: 451680 | I76: 578880
A77: 2024-05-06 | B77: 342630 | C77: 228420 | D77: 464830 | E77: 342630 | F77: 464830 | G77: 417360 | H77: 442270 | I77: 566820
A78: 2024-05-07 | B78: 335340 | C78: 223560 | D78: 454940 | E78: 335340 | F78: 454940 | G78: 408480 | H78: 432860 | I78: 554760
A79: 2024-05-08 | B79: 328050 | C79: 218700 | D79: 445050 | E79: 328050 | F79: 445050 | G79: 399600 | H79: 423450 | I79: 542700
A80: 2024-05-09 | B80: 320760 | C80: 213840 | D80: 435160 | E80: 320760 | F80: 435160 | G80: 390720 | H80: 414040 | I80: 530640
A81: 2024-05-10 | B81: 313470 | C81: 208980 | D81: 425270 | E81: 313470 | F81: 425270 | G81: 381840 | H81: 404630 | I81: 518580
A82: 2024-05-11 | B82: 306180 | C82: 204120 | D82: 415380 | E82: 306180 | F82: 415380 | G82: 372960 | H82: 395220 | I82: 506520
A83: 2024-05-12 | B83: 298890 | C83: 199260 | D83: 405490 | E83: 298890 | F83: 405490 | G83: 364080 | H83: 385810 | I83: 494460
A84: 2024-05-13 | B84: 291600 | C84: 194400 | D84: 395600 | E84: 291600 | F84: 395600 | G84: 355200 | H84: 376400 | I84: 482400
A85: 2024-05-14 | B85: 284310 | C85: 189540 | D85: 385710 | E85: 284310 | F85: 385710 | G85: 346320 | H85: 366990 | I85: 470340
A86: 2024-05-15 | B86: 277020 | C86: 184680 | D86: 375820 | E86: 277020 | F86: 375820 | G86: 337440 | H86: 357580 | I86: 458280
A87: 2024-05-16 | B87: 269730 | C87: 179820 | D87: 365930 | E87: 269730 | F87: 365930 | G87: 328560 | H87: 348170 | I87: 446220
A88: 2024-05-17 | B88: 262440 | C88: 174960 | D88: 356040 | E88: 262440 | F88: 356040 | G88: 319680 | H88: 338760 | I88: 434160
A89: 2024-05-18 | B89: 255150 | C89: 170100 | D89: 346150 | E89: 255150 | F89: 346150 | G89: 310800 | H89: 329350 | I89: 422100
A90: 2024-05-19 | B90: 247860 | C90: 165240 | D90: 336260 | E90: 247860 | F90: 336260 | G90: 301920 | H90: 319940 | I90: 410040
A91: 2024-05-20 | B91: 240570 | C91: 160380 | D91: 326370 | E91: 240570 | F91: 326370 | G91: 293040 | H91: 310530 | I91: 397980
A92: 2024-05-21 | B92: 233280 | C92: 155520 | D92: 316480 | E92: 233280 | F92: 316480 | G92: 284160 | H92: 301120 | I92: 385920
A93: 2024-05-22 | B93: 225990 | C93: 150660 | D93: 306590 | E93: 225990 | F93: 306590 | G93: 275280 | H93: 291710 | I93: 373860
A94: 2024-05-23 | B94: 218700 | C94: 145800 | D94: 296700 | E94: 218700 | F94: 296700 | G94: 266400 | H94: 282300 | I94: 361800
A95: 2024-05-24 | B95: 211410 | C95: 140940 | D95: 286810 | E95: 211410 | F95: 286810 | G95: 257520 | H95: 272890 | I95: 349740
A96: 2024-05-25 | B96: 204120 | C96: 136080 | D96: 276920 | E96: 204120 | F96: 276920 | G96: 248640 | H96: 263480 | I96: 337680
A97: 2024-05-26 | B97: 196830 | C97: 131220 | D97: 267030 | E97: 196830 | F97: 267030 | G97: 239760 | H97: 254070 | I97: 325620
A98: 2024-05-27 | B98: 189540 | C98: 126360 | D98: 257140 | E98: 189540 | F98: 257140 | G98: 230880 | H98: 244660 | I98: 313560
A99: 2024-05-28 | B99: 182250 | C99: 121500 | D99: 247250 | E99: 182250 | F99: 247250 | G99: 222000 | H99: 235250 | I99: 301500
A100: 2024-05-29 | B100: 174960 | C100: 116640 | D100: 237360 | E100: 174960 | F100: 237360 | G100: 213120 | H100: 225840 | I100: 289440
A101: 2024-05-30 | B101: 167670 | C101: 111780 | D101: 227470 | E101: 167670 | F101: 227470 | G101: 204240 | H101: 216430 | I101: 277380
A102: 2024-05-31 | B102: 160380 | C102: 106920 | D102: 217580 | E102: 160380 | F102: 217580 | G102: 195360 | H102: 207020 | I102: 265320
A103: 2024-06-01 | B103: 153090 | C103: 102060 | D103: 207690 | E103: 153090 | F103: 207690 | G103: 186480 | H103: 197610 | I103: 253260
A104: 2024-06-02 | B104: 145800 | C104: 97200 | D104: 197800 | E104: 145800 | F104: 197800 | G104: 177600 | H104: 188200 | I104: 241200
A105: 2024-06-03 | B105: 138510 | C105: 92340 | D105: 187910 | E105: 138510 | F105: 187910 | G105: 168720 | H105: 178790 | I105: 229140
A106: 2024-06-04 | B106: 131220 | C106: 87480 | D106: 178020 | E106: 131220 | F106: 178020 | G106: 159840 | H106: 169380 | I106: 217080
A107: 2024-06-05 | B107: 123930 | C107: 82620 | D107: 168130 | E107: 123930 | F107: 168130 | G107: 150960 | H107: 159970 | I107: 205020
A108: 2024-06-06 | B108: 116640 | C108: 77760 | D108: 158240 | E108: 116640 | F108: 158240 | G108: 142080 | H108: 150560 | I108: 192960
A109: 2024-06-07 | B109: 109350 | C109: 72900 | D109: 148350 | E109: 109350 | F109: 148350 | G109: 133200 | H109: 141150 | I109: 180900
A110: 2024-06-08 | B110: 102060 | C110: 68040 | D110: 138460 | E110: 102060 | F110: 138460 | G110: 124320 | H110: 131740 | I110: 168840
A111: 2024-06-09 | B111: 94770 | C111: 63180 | D111: 128570 | E111: 94770 | F111: 128570 | G111: 115440 | H111: 122330 | I111: 156780
A112: 2024-06-10 | B112: 87480 | C112: 58320 | D112: 118680 | E112: 87480 | F112: 118680 | G112: 106560 | H112: 112920 | I112: 144720
A113: 2024-06-11 | B113: 80190 | C113: 53460 | D113: 108790 | E113: 80190 | F113: 108790 | G113: 97680 | H113: 103510 | I113: 132660
A114: 2024-06-12 | B114: 72900 | C114: 48600 | D114: 98900 | E114: 72900 | F114: 98900 | G114: 88800 | H114: 94100 | I114: 120600
A115: 2024-06-13 | B115: 65610 | C115: 43740 | D115: 89010 | E115: 65610 | F115: 89010 | G115: 79920 | H115: 84690 | I115: 108540
A116: 2024-06-14 | B116: 58320 | C116: 38880 | D116: 79120 | E116: 58320 | F116: 79120 | G116: 71040 | H116: 75280 | I116: 96480
A117: 2024-06-15 | B117: 51030 | C117: 34020 | D117: 69230 | E117: 51030 | F117: 69230 | G117: 62160 | H117: 65870 | I117: 84420
A118: 2024-06-16 | B118: 43740 | C118: 29160 | D118: 59340 | E118: 43740 | F118: 59340 | G118: 53280 | H118: 56460 | I118: 72360
A119: 2024-06-17 | B119: 36450 | C119: 24300 | D119: 49450 | E119: 36450 | F119: 49450 | G119: 44400 | H119: 47050 | I119: 60300
A120: 2024-06-18 | B120: 29160 | C120: 19440 | D120: 39560 | E120: 29160 | F120: 39560 | G120: 35520 | H120: 37640 | I120: 48240
A121: 2024-06-19 | B121: 21870 | C121: 14580 | D121: 29670 | E121: 21870 | F121: 29670 | G121: 26640 | H121: 28230 | I121: 36180
A122: 2024-06-20 | B122: 14580 | C122: 9720 | D122: 19780 | E122: 14580 | F122: 19780 | G122: 17760 | H122: 18820 | I122: 24120
A123: 2024-06-21 | B123: 7290 | C123: 4860 | D123: 9890 | E123: 7290 | F123: 9890 | G123: 8880 | H123: 9410 | I123: 12060
A124: 2024-06-22 | B124: 0 | C124: 0 | D124: 0 | E124: 0 | F124: 0 | G124: 0 | H124: 0 | I124: 0
